Cogmind - Beta 11.1 @@@ ROGUE MODE // 2022.05.04 @ 22:21:58 Player: LU-1G1 Result: Escaped singularity! Performance ------------- Evolutions (9) 4500 Regions Visited (35) 7000 Robots Destroyed (604) 3020 Value Destroyed (34480) 34480 Prototype IDs (300) 6000 Alien Tech Used (11) 2200 Bonus (51783) 51783 TOTAL SCORE: 108983 Bonus ------- High Alert Combat Kills 8514 Follower Combat Kills 2541 Entered Garrisons 400 Used RIF Installer 1000 Entered DSFs 500 Network Hubs Disabled 400 Aligned with FarCom 300 Met Data Miner 300 Met Zhirov 300 Built Enhanced Grunts 300 A7 Reached Mainframe 300 Met R17 at Cetus 500 Used Core Reset Matrix 3000 Scanned by Researcher 500 Destroyed MAIN.C Guards 500 Met MAIN.C 5000 Destroyed MAIN.C Shell 5000 Destroyed MAIN.C 10000 Met Architect 300 Destroyed A8 300 Destroyed A6 400 Destroyed A5 500 Destroyed Architect 15000 Win 3000 Friendly Fire -7072 Cogmind --------- Core Integrity 410/1600 Matter 300/300 Energy 99/100 System Corruption 0% Temperature Cool (0) Movement Core (50) Location Near Former Tau Ceti IV Parts ------- > --- POWER (3) -------- (None) > --- PROPULSION (6) --- (None) > --- UTILITY (13) ----- (None) > --- WEAPON (3) ------- (None) > --- INVENTORY (7) ---- Biometal Heavy Treads Experimental Energy Well (600) Improved Potential Cannon Omega Cannon Peak State ------------ > --- POWER ------------ Zero-point Reactor Zero-point Reactor Zero-point Reactor > --- PROPULSION ------- Experimental Biometal Heavy Treads Experimental Biometal Heavy Treads High-density Centrium Heavy Treads > --- UTILITY ---------- Huge Storage Unit Experimental Energy Well Experimental Optical Array Experimental Armor Integrity Analyzer Particle Accelerator Quantum Capacitor SHELL Armor Graphene Brace Experimental Force Field AEGIS Remote Shield > --- WEAPON ----------- Compact HERF Cannon Omega Cannon > --- INVENTORY -------- Biometal Heavy Treads Biometal Heavy Treads Advanced Energy Well Advanced Energy Well Experimental Matter Compressor Experimental Matter Compressor Structural Scanner Improved Kinecellerator Experimental EM Disruption Field Advanced Force Field AEGIS Remote Shield Long-range Tractor Beam Transdimensional Reconstructor Transdimensional Reconstructor High-powered Transdimensional Reconstructor Integrity Redistributor Subatomic Replicator HERF Cannon Enhanced Nova Cannon Enhanced Nova Cannon Enhanced Nova Cannon Enhanced Gamma Bomb Array Improved Remote Datajack Core Stripper [Rating: 256] Favorites ----------- Power Antimatter Reactor Engine Heavy Ion Engine Power Core Micro Nuclear Core Reactor Antimatter Reactor Propulsion Light Treads Treads Light Treads Leg Aluminum Leg Wheel Wheel Utility Huge Storage Unit Device Structural Scanner Storage Huge Storage Unit Processor Experimental Targeting Computer Hackware Relay Coupler [NC] Protection SHELL Armor Weapon Enhanced Nova Cannon Energy Gun Cooled Pulse Rifle Energy Cannon Enhanced Nova Cannon Ballistic Gun Advanced KE Penetrator Ballistic Cannon Omega Cannon Launcher Enhanced Gamma Bomb Array Special Weapon Remote Datajack Impact Weapon Great Maul Build | -11 -10 -10 -10 -9 -8 -8 -7 -7 -7 -6 -6 -6 -6 -6 -6 -6 -6 -6 -5 -5 -5 -5 -4 -4 -4 -4 -4 -3 -3 -2 -2 -2 -1 -1 -1 ------- Run | Scr Mat Min Exi Min Mat Gar Fac Low Dat Pro Fac Was Fac Ext Cet Arc Hub Gar Fac Upp Upp Zhi Pro Fac Was Fac DSF Res Tes Res Qua Sec Acc Com Ac0 Slots Evolved 18 | . . . . . 4 . 2 . . . 2 . . . . . . . 2 . . . . 2 . . . 2 . 2 . . 2 . . Power 2 | . . . . . . . 1 . . . . . . . . . . . . . . . . . . . . 1 . . . . . . . Propulsion 4 | . . . . . 2 . . . . . . . . . . . . . . . . . . 2 . . . . . . . . . . . Utility 11 | . . . . . 2 . 1 . . . 2 . . . . . . . 2 . . . . . . . . 1 . 2 . . 1 . . Weapon 1 | . . . . . . . . . . . . . . . . . . . . . . . . . . . . . . . . . 1 . . Parts Attached 814 | 6 13 4 . 3 38 27 70 4 2 19 11 19 25 40 7 7 45 11 15 3 11 3 4 54 12 3 1 7 84 28 95 51 10 60 22 Power 71 | 1 3 . . . 4 3 9 1 . . 1 2 1 2 . . 2 3 . 2 . 1 . 1 2 . . 2 6 2 10 4 . 9 . Engine 16 | 1 3 . . . 2 2 2 1 . . . . . . . . . 3 . 2 . . . . . . . . . . . . . . . Core 13 | . . . . . 2 1 7 . . . 1 . . . . . . . . . . . . 1 . . . 1 . . . . . . . Reactor 42 | . . . . . . . . . . . . 2 1 2 . . 2 . . . . 1 . . 2 . . 1 6 2 10 4 . 9 . Propulsion 86 | 2 2 1 . . 13 10 7 . . 1 2 2 . 2 1 3 2 . . . 2 . . 5 2 1 . 2 1 2 8 2 2 10 1 Treads 78 | 2 2 1 . . 11 10 5 . . 1 . 2 . 2 1 3 2 . . . 2 . . 5 2 1 . 2 1 2 8 2 2 8 1 Leg 6 | . . . . . 2 . . . . . 2 . . . . . . . . . . . . . . . . . . . . . . 2 . Wheel 2 | . . . . . . . 2 . . . . . . . . . . . . . . . . . . . . . . . . . . . . Hover . | . . . . . . . . . . . . . . . . . . . . . . . . . . . . . . . . . . . . Flight . | . . . . . . . . . . . . . . . . . . . . . . . . . . . . . . . . . . . . Utility 376 | 1 3 2 . 2 10 10 24 1 . 12 7 6 13 24 3 4 27 4 8 . 3 2 2 22 . . 1 1 50 14 50 27 2 27 14 Device 261 | . . 1 . 1 2 3 13 1 . 7 2 4 12 11 . 4 21 2 8 . 1 1 2 19 . . . 1 40 12 42 22 2 14 13 Storage 26 | 1 1 . . . 1 . . . . 4 . . . . 1 . . . . . . . . . . . . . 4 . 4 2 . 8 . Processor 16 | . . . . . 1 . 3 . . . 1 . 1 1 . . 2 . . . . . . . . . . . 1 1 1 1 . 3 . Hackware 14 | . . . . . . 1 2 . . . 2 . . . . . . 2 . . . . . 1 . . . . 2 1 3 . . . . Protection 59 | . 2 1 . 1 6 6 6 . . 1 2 2 . 12 2 . 4 . . . 2 1 . 2 . . 1 . 3 . . 2 . 2 1 Artifact . | . . . . . . . . . . . . . . . . . . . . . . . . . . . . . . . . . . . . Weapon 281 | 2 5 1 . 1 11 4 30 2 2 6 1 9 11 12 3 . 14 4 7 1 6 . 2 26 8 2 . 2 27 10 27 18 6 14 7 Energy Gun 37 | . . . . . 7 3 14 1 1 2 . 5 3 . 1 . . . . . . . . . . . . . . . . . . . . Energy Cannon 99 | . . . . . . . . . . 1 . . 8 6 . . 3 4 5 1 1 . 1 8 . . . 1 12 1 17 12 4 11 3 Ballistic Gun 76 | 2 5 1 . 1 . . 4 1 1 1 . . . . 2 . 8 . 2 . 4 . 1 12 4 1 . 1 14 6 5 . . . . Ballistic Cannon 11 | . . . . . 2 . . . . . . . . . . . . . . . . . . 1 . . . . . 2 . 1 . 1 4 Launcher 23 | . . . . . 1 1 5 . . . . . . 2 . . 3 . . . 1 . . 2 1 1 . . . 1 1 1 1 2 . Special Weapon 18 | . . . . . . . . . . . . 3 . 4 . . . . . . . . . 3 3 . . . 1 . 2 1 1 . . Impact Weapon 17 | . . . . . 1 . 7 . . 2 1 1 . . . . . . . . . . . . . . . . . . 2 3 . . . Slashing Weapon . | . . . . . . . . . . . . . . . . . . . . . . . . . . . . . . . . . . . . Piercing Weapon . | . . . . . . . . . . . . . . . . . . . . . . . . . . . . . . . . . . . . Special Melee Weapon . | . . . . . . . . . . . . . . . . . . . . . . . . . . . . . . . . . . . . Unidentified Prototypes 49 | . 1 1 . 1 4 . 1 . . . . 1 . . 4 . 5 1 1 . . 3 . . . . . . 6 1 8 7 1 3 . Corrupted Parts 2 | . . . . . . . . . . 1 . . . . . 1 . . . . . . . . . . . . . . . . . . . System Corruption 4 | . . . . . . . . . . 3 . . . . . 1 . . . . . . . . . . . . . . . . . . . Parts Lost 75 | . 4 2 . . 11 7 20 . . 5 . . . 3 . . 2 1 . . 2 . . 5 . . . . 3 2 3 . . 1 4 Power 11 | . 1 . . . 1 1 5 . . 1 . . . . . . . . . . . . . 1 . . . . . . 1 . . . . Propulsion 22 | . 1 1 . . 5 3 7 . . 1 . . . . . . . . . . . . . . . . . . 1 1 1 . . . 1 Utility 28 | . . . . . 3 1 5 . . 3 . . . 3 . . 2 . . . 2 . . 3 . . . . 1 1 1 . . 1 2 Weapon 14 | . 2 1 . . 2 2 3 . . . . . . . . . . 1 . . . . . 1 . . . . 1 . . . . . 1 Highest Loss Streak 7 | . 3 2 . . 6 4 7 . . 4 . . . 1 . . 1 1 . . 1 . . 3 . . . . 1 1 2 . . 1 1 To Critical Strikes 2 | . . . . . 1 . . . . . . . . . . . . . . . . . . . . . . . 1 . . . . . . Average Slot Usage (%) 78 | . 96 99 100 100 98 99 93 100 85 99 98 71 65 83 80 79 74 73 64 65 65 75 82 75 77 77 78 69 67 71 73 67 68 64 63 Engine 2 | . 13 14 14 14 5 3 3 2 7 7 6 . . . . . . . 5 5 5 5 5 3 . . . . . . . . . . . Core 1 | . . . . . 3 5 9 12 7 7 5 . . . . . . . . . . . . 1 2 . . 2 . . . . . . . Reactor 6 | . . . . . . . . . . . . 11 12 12 13 13 13 12 5 5 4 2 5 5 7 10 10 9 13 13 12 7 8 4 3 Treads 17 | . 27 28 28 28 32 35 27 15 15 15 1 11 13 13 13 13 12 13 11 11 11 11 11 16 14 14 15 14 14 13 13 13 12 11 11 Device 11 | . . . . . 9 11 12 15 15 14 19 7 6 15 8 5 9 9 10 11 10 10 11 16 21 21 21 19 12 16 20 20 20 12 11 Storage 6 | . 14 14 14 14 9 9 7 7 7 7 6 6 6 6 6 6 6 6 5 5 5 5 5 5 5 5 5 4 4 4 4 4 4 6 3 Processor 8 | . . . . . 8 2 11 15 15 14 6 6 6 12 13 13 7 13 5 5 5 5 5 5 5 5 5 4 4 7 6 6 8 14 15 Protection 7 | . 10 13 14 13 8 12 3 . . . 12 7 6 7 10 13 9 6 5 5 5 14 17 7 5 5 7 4 5 8 6 3 4 6 7 Energy Gun 2 | . . . . . 12 17 10 6 1 3 5 11 8 . 2 . . . . . . . . . . . . . . . . . . . . Energy Cannon 2 | . . . . . . . . . . 3 . . 4 10 6 . . 5 4 5 1 . . 2 . . . 1 1 . 5 7 10 4 7 Ballistic Gun 5 | . 27 28 28 28 2 . 1 7 . 6 6 . . . 4 13 12 . . 1 5 11 10 4 9 10 10 7 7 6 1 . . . . Naked Turns 3 | . . . . . . . . . . . . . . . . . . . . . . . . . . . . . . . . . . . 3 Heaviest Build 237 | 14 53 52 52 52 102 107 114 105 105 111 118 165 178 158 164 161 171 158 157 161 157 153 156 153 151 151 159 167 191 210 215 222 220 237 217 Greatest Support 265 | 40 40 40 40 40 84 90 99 26 26 26 26 145 145 145 150 150 160 160 160 160 160 150 150 210 210 210 210 210 210 215 255 265 260 265 255 Greatest Overweight (x) 9 | 1 1 1 1 1 6 1 9 4 4 4 4 4 1 1 1 2 1 . . 1 . 1 1 1 . 1 . . . 1 1 1 1 1 . Average Overweight (x) . | . . 1 1 1 . 1 1 3 3 3 4 1 1 . 1 1 . . . . . . 1 . . . . . . . . . . . . Largest Inventory Capacity 27 | 8 20 20 20 20 25 25 25 25 25 25 25 25 25 25 25 25 25 25 25 25 25 25 25 25 25 25 25 25 25 25 25 27 27 27 27 Average Capacity 24 | 7 15 20 20 20 23 25 25 25 25 25 25 25 25 25 25 25 25 25 25 25 25 25 25 25 25 25 25 25 25 25 25 25 27 27 26 Most Carried 27 | 8 19 20 20 20 25 25 25 25 25 25 25 25 25 25 25 25 25 25 25 25 25 23 25 25 25 25 25 25 25 25 25 27 27 27 27 Average Carried 23 | 5 11 18 19 20 22 24 21 23 25 24 24 24 24 23 24 24 23 24 23 24 21 18 23 24 24 25 24 24 24 24 24 25 26 26 26 Final Capacity 27 | 8 20 20 20 20 25 25 25 25 25 25 25 25 25 25 25 25 25 25 25 25 25 25 25 25 25 25 25 25 25 25 25 27 27 27 7 Final Carried 27 | 8 19 20 20 20 25 25 21 25 25 24 25 25 25 25 25 25 24 25 24 25 15 21 25 25 25 25 25 25 24 25 25 27 26 27 7 Class Distribution -------------------- 37% | Scavenger-Mutant 32% | Generator-Mutant 11% | Mutant 7% | Scavenger-Skirmisher 5% | Commander-Mutant 3% | Bothacker-Mutant Dominant Class ---------------- Mutant | -10/Materials Commander-Mutant | -10/Mines Commander-Mutant | -10/Exiles Mutant | -9/Mines Scavenger-Mutant | -8/Materials Scavenger-Mutant | -8/Garrison Scavenger-Mutant | -7/Factory Scavenger-Skirmisher | -7/Lower Caves Scavenger-Mutant | -7/Data Miner Scavenger-Skirmisher | -6/Proximity Caves Scavenger-Mutant | -6/Factory Scavenger-Mutant | -6/Waste Scavenger-Mutant | -6/Factory Scavenger-Mutant | -6/Extension Commander-Mutant | -6/Cetus Scavenger-Mutant | -6/Archives Scavenger-Mutant | -6/Hub_04(d) Scavenger-Mutant | -6/Garrison Bothacker-Skirmisher | -5/Factory Bothacker-Skirmisher | -5/Upper Caves Scavenger-Skirmisher | -5/Upper Caves Bothacker-Mutant | -5/Zhirov Bothacker-Mutant | -4/Proximity Caves Scavenger-Mutant | -4/Factory Scavenger-Mutant | -4/Waste Scavenger-Mutant | -4/Factory Scavenger-Mutant | -4/DSF Scavenger-Skirmisher | -3/Research Scavenger-Skirmisher | -3/Testing Generator-Mutant | -2/Research Generator-Mutant | -2/Quarantine Generator-Mutant | -2/Section 7 Generator-Mutant | -1/Access Generator-Mutant | -1/Command Generator-Mutant | -1/Access_0 Resources | -11 -10 -10 -10 -9 -8 -8 -7 -7 -7 -6 -6 -6 -6 -6 -6 -6 -6 -6 -5 -5 -5 -5 -4 -4 -4 -4 -4 -3 -3 -2 -2 -2 -1 -1 -1 ----------- Run | Scr Mat Min Exi Min Mat Gar Fac Low Dat Pro Fac Was Fac Ext Cet Arc Hub Gar Fac Upp Upp Zhi Pro Fac Was Fac DSF Res Tes Res Qua Sec Acc Com Ac0 Matter Collected 22435 | 302 663 112 . 128 583 411 1081 344 . 357 39 462 486 647 115 206 1220 762 318 201 67 181 59 1565 726 . 56 110 2547 1111 3074 657 108 3450 287 Remotely 6169 | . . . . . . . . . . . . . . 121 . . 600 257 237 . . . 17 622 . . . . 1552 717 1545 210 . 291 . Salvage Created 38729 | 119 997 90 . 29 1558 1070 2187 329 . 115 39 2744 555 448 150 310 2178 1540 465 109 120 319 . 1843 2065 126 85 224 2504 944 2983 3386 2871 4869 1358 Parts 1499 | 5 71 7 . 3 67 41 109 6 . 4 4 53 26 18 4 17 98 48 15 1 6 6 . 68 42 5 5 11 142 40 104 119 110 199 45 Haulers Intercepted 7 | . 1 . . . 3 . 1 . . . . . . . . . 2 . . . . . . . . . . . . . . . . . . Recyclers Shooed 9 | 1 . . . . . . 3 . . . . . 1 . . . 1 . . . . . . . . . . . 2 . . . 1 . . Parts Field Recycled . | . . . . . . . . . . . . . . . . . . . . . . . . . . . . . . . . . . . . Retrieved Matter . | . . . . . . . . . . . . . . . . . . . . . . . . . . . . . . . . . . . . Parts Self-Destructed 10 | . . . . . . . . . . 6 . . . . . . . . . . 2 2 . . . . . . . . . . . . . Prevented 5 | . . . . . . . . . . 2 . . . . . . . . . 1 2 . . . . . . . . . . . . . . Kills | -11 -10 -10 -10 -9 -8 -8 -7 -7 -7 -6 -6 -6 -6 -6 -6 -6 -6 -6 -5 -5 -5 -5 -4 -4 -4 -4 -4 -3 -3 -2 -2 -2 -1 -1 -1 ------- Run | Scr Mat Min Exi Min Mat Gar Fac Low Dat Pro Fac Was Fac Ext Cet Arc Hub Gar Fac Upp Upp Zhi Pro Fac Was Fac DSF Res Tes Res Qua Sec Acc Com Ac0 Combat Hostiles Destroyed 478 | . 20 2 . 1 34 23 36 . . 1 1 6 8 13 1 1 22 26 10 2 5 . . 31 6 2 1 3 31 20 33 36 28 52 23 Melee 2 | . . . . . . . . . . . . . . . . . . . . . . . . . . . 1 . . . 1 . . . . Guns 189 | . 20 2 . 1 25 17 23 . . 1 1 6 2 . 1 1 19 1 1 . 1 . . 11 6 2 . 3 31 11 3 . . . . Cannons 116 | . . . . . 6 . . . . . . . 3 6 . . . 10 3 2 1 . . 4 . . . . . 1 19 14 14 26 7 AOE 63 | . . . . . 2 4 13 . . . . . . 5 . . 3 . . . 3 . . 5 . . . . . 8 3 . . 10 7 Classes Destroyed 27 | 2 6 . . . 5 1 2 1 . . . 3 . . . . . 1 . . . . . 1 . . . . 1 1 2 1 . . . Worker 20 | . 2 . . 2 1 . 6 . . . . . . . . . 4 . . . . . . 2 . . . . . . . . 1 2 . Builder 19 | . . . . . . . 7 . . . . . 3 . . . 5 . . . . . . 2 . . . . 1 . . . 1 . . Tunneler 4 | 1 2 . . . . . . . . . . . . 1 . . . . . . . . . . . . . . . . . . . . . Hauler 7 | . 1 . . . 3 . 1 . . . . . . . . . 2 . . . . . . . . . . . . . . . . . . Recycler 16 | 1 1 . . . . . 8 . . . . . . . . . 2 . . . . . . . . . . . 1 . . . 2 1 . Operator 8 | . 2 . . . 2 . 1 . . . . . . . . 3 . . . . . . . . . . . . . . . . . . . Watcher 21 | . 2 . . . . . 4 . . . . . . . . . 1 . 2 . . . . 1 . . . . . . 2 3 5 1 . Swarmer 55 | . 3 . . 1 6 . 6 . . . . . . 7 . . . 3 4 . 4 . . 7 . . . . . 3 4 . 5 2 . Cutter 3 | . . . . . . . . . . . . . . . . . . . . . . . . . . . . . . 3 . . . . . Grunt 182 | . 17 2 . . 17 14 19 . . . . . 3 . 1 . 14 15 4 . . . . 13 . . 1 3 10 8 12 12 13 4 . Brawler 12 | . . . . . 1 . 2 . . . . . 1 . . . 1 . . . . . . . . . . . . . 3 1 2 1 . Duelist 6 | . . . . . 2 1 . . . . . . . . . . 1 . . . . . . . . . . . . . . 1 1 . . Protector 2 | . . . . . . . 1 . . . . . . . . . 1 . . . . . . . . . . . . . . . . . . Researcher 2 | . . . . . . . . . . . . . . . . . . . . . . . . . . . . . 2 . . . . . . Sentry 45 | . . . . . 6 7 4 . . . . . 2 5 . 1 . 7 . . . . . 1 . . . . . 1 . 5 2 4 . Demolisher 2 | . . . . . . . . . . . . . . . . . . . . . . . . . . . . . . . . . . 2 . Specialist 1 | . . . . . . . . . . . . . . . . . . 1 . . . . . . . . . . . . . . . . . Hunter 58 | . . . . . 1 . . . . 1 . . . . . . . . 2 2 1 . . 4 . 2 . . 11 4 2 7 2 19 . Programmer 49 | . . . . . 1 . 4 . . . 1 . 2 . . . 2 . . . . . . 5 . . . . 10 . 8 2 1 13 . Heavy 3 | . . . . . . . . . . . . . . . . . . . . . . . . 1 . . . . . 1 . . . 1 . Q-Series 9 | . . . . . . . . . . . . . . . . . . . . . . . . . . . . . . . 3 4 2 . . Behemoth 2 | . . . . . . 1 . . . . . . . 1 . . . . . . . . . . . . . . . . . . . . . Compactor 12 | . . . . . . . . . . . . 6 . . . . . . . . . . . . 6 . . . . . . . . . . S7 Guard 2 | . . . . . . . . . . . . . . . . . . . . . . . . . . . . . . . . 2 . . . M Guard 2 | . . . . . . . . . . . . . . . . . . . . . . . . . . . . . . . . . . 2 . Enhanced Grunt 16 | . . . . . . . . . . . . . . . . 1 1 . . . . . . . . . . . . . . . . . 14 Enhanced Sentry 1 | . . . . . . . . . . . . . . . . . . . . . . . . . . . . . . . . . . . 1 Enhanced Hunter 4 | . . . . . . . . . . . . . . . . . . . . . . . . . . . . . . . . . . . 4 Lightning 3 | . . . . . . . . . . . . . . . . . 3 . . . . . . . . . . . . . . . . . . Combat Programmer 2 | . . . . . . . . . . . . . . . . . . . . . . . . . . . . . . . . . . 2 . Executioner 2 | . . . . . . . . . . . . . . . . . . . . . . . . . . . . . . . . 2 . . . Fortress 1 | . . . . . . . . . . . . . . . . . . . . . . . . . . . . . . . 1 . . . . Decomposer 3 | . . . . . . . . . . 3 . . . . . . . . . . . . . . . . . . . . . . . . . Packrat 2 | . . . . . . . . 2 . . . . . . . . . . . . . . . . . . . . . . . . . . . Surgeon 2 | . . . . . . . . . . . . 2 . . . . . . . . . . . . . . . . . . . . . . . Wasp 6 | . . . . . . . . . . . . 6 . . . . . . . . . . . . . . . . . . . . . . . Thug 10 | . . . . . . . . 1 . . . 7 . . . 1 . . . . . . . . 1 . . . . . . . . . . Savage 4 | . . . . . . . . 1 . . . 2 . . 1 . . . . . . . . . . . . . . . . . . . . Martyr 4 | . . . . . . . . . . . . 2 . . . . . . . . . . . . 2 . . . . . . . . . . Mutant 1 | . . . . . . . . 1 . . . . . . . . . . . . . . . . . . . . . . . . . . . Best Kill Streak 25 | 2 5 2 . 1 6 6 11 . . 1 1 1 3 6 1 2 8 10 4 2 4 . . 7 2 2 1 3 6 8 4 5 7 25 4 Combat Bots Only 24 | . 5 2 . 1 6 6 8 . . 1 1 1 2 6 1 1 5 10 4 2 4 . . 7 2 2 1 3 5 8 4 5 6 24 4 Max Kills in Single Turn 4 | 1 2 1 . 1 2 2 4 1 . 1 1 2 1 3 1 2 3 1 1 1 3 . . 2 1 2 1 1 1 2 3 1 2 4 2 Gunslinging 1 | . 1 . . . . . . . . . . . . . . . . . . . . . . . . 1 . . . . . . . . . Exploded 4 | . . . . . 2 2 4 . . . . . . 3 . . 1 . . . 3 . . 2 . . . . . 2 3 . . 4 2 Melee 1 | . . . . . . . . . . . . . . . . . . . . . . . . . . . 1 . . . 1 . . . . Uniques/NPCs Destroyed 6 | . . . . . . . . . . . . . . . . . . . . . . . . . . . . . . . . . . 2 4 MAIN.C Shell (-1/Command) MAIN.C (-1/Command) A8 (-1/Access_0) A6 (-1/Access_0) A5 (-1/Access_0) Architect (-1/Access_0) Combat | -11 -10 -10 -10 -9 -8 -8 -7 -7 -7 -6 -6 -6 -6 -6 -6 -6 -6 -6 -5 -5 -5 -5 -4 -4 -4 -4 -4 -3 -3 -2 -2 -2 -1 -1 -1 -------- Run | Scr Mat Min Exi Min Mat Gar Fac Low Dat Pro Fac Was Fac Ext Cet Arc Hub Gar Fac Upp Upp Zhi Pro Fac Was Fac DSF Res Tes Res Qua Sec Acc Com Ac0 Damage Taken 42689 | . 1056 147 . 46 2052 1845 3228 . . 325 43 . 823 1601 124 69 1892 942 411 . 229 . 60 2497 . . 130 138 3265 4049 3937 2084 1526 5552 4618 Core 2501 | . 154 . . 8 214 273 253 . . 43 . . 56 39 14 23 71 44 . . 20 . . 40 . . 12 15 95 187 82 133 17 165 543 Absorbed by Shields 19047 | . . . . . 36 127 129 . . 34 16 . . 195 56 . . . 133 . 87 . 22 907 . . 48 52 1054 1911 1751 1933 1438 4762 4356 Reduced by Siege Mode 2005 | . . . . . . . . . . . . . 27 133 . . 72 58 22 . 3 . . 143 . . . 13 272 179 293 47 127 420 196 Redirected to Shielding 248 | . 12 . . 1 . . . . . . . . . . . . . . . . . . . 81 . . . . . . . . . . 154 Regen/Repaired (Parts) 15674 | . 163 . . . . . . . . . . . 270 398 . . . . . . . . . . . . . . 1355 1478 2382 2686 639 4843 1460 Core Remaining (%) 63 | 100 . . . 35 . 11 . . . 57 . . . . . . . 70 . . . . 98 . . . 95 . 91 . . 51 . . 25 Volleys Fired 2252 | 7 87 9 . 5 111 78 117 17 . 26 3 199 57 61 3 15 73 63 40 4 6 5 2 101 69 2 . 8 156 62 149 165 121 264 167 Largest 2 | 2 2 2 . 2 2 2 2 2 . 2 2 2 2 2 2 2 2 2 2 1 2 2 2 2 2 2 . 2 2 2 2 2 1 2 2 Hottest 270 | 40 40 40 . 40 116 116 116 51 . 113 43 81 151 180 240 70 90 90 90 70 70 70 90 105 70 70 . 90 125 100 240 240 120 160 270 Shots Fired 3365 | 14 169 18 . 10 221 151 208 36 . 41 6 370 101 95 7 30 138 66 42 4 9 10 3 144 131 4 . 13 274 104 219 173 121 265 168 Gun 2034 | 14 169 18 . 10 185 144 196 36 . 29 6 364 68 . 3 30 130 6 4 . 6 10 2 86 124 4 . 10 237 84 59 . . . . Cannon 1213 | . . . . . 35 . . . . 12 . . 33 71 4 . 2 60 38 4 2 . 1 46 . . . 3 30 10 150 172 117 255 168 Launcher 56 | . . . . . 1 7 12 . . . . . . 3 . . 6 . . . 1 . . 2 . . . . . 10 4 . . 10 . Special 62 | . . . . . . . . . . . . 6 . 21 . . . . . . . . . 10 7 . . . 7 . 6 1 4 . . Kinetic 1267 | 14 169 18 . 10 82 . 50 19 . 12 3 23 . . 1 30 130 6 4 . 6 10 2 98 124 4 . 10 237 91 59 1 . 48 6 Thermal 1493 | . . . . . 138 144 146 17 . 29 3 341 101 71 6 . 2 1 8 . . . 1 2 . . . 3 30 3 113 69 17 135 113 Explosive 44 | . . . . . 1 7 12 . . . . . . 3 . . 4 . . . 1 . . 2 . . . . . 10 4 . . . . Electromagnetic 499 | . . . . . . . . . . . . . . . . . 2 59 30 4 2 . . 32 . . . . . . 37 102 100 82 49 Robot Hit Streak 58 | 3 11 14 . 2 18 15 20 10 . 6 3 46 22 31 9 11 31 49 11 5 9 10 . 27 33 5 . 12 51 32 28 12 25 58 18 Robot Miss Streak 4 | 3 4 1 . 3 3 2 3 3 . 2 1 3 1 3 . 4 1 1 3 . 1 . . 3 2 1 . . 2 2 3 4 3 4 3 Penetration Max 1 | . . . . . 1 . . . . . . . . . . 1 1 1 1 . . . . 1 1 . . 1 1 1 1 . . . . Secondary Targets 35 | . 6 1 . . 1 1 4 . . . . 2 . . . . 3 . . . . . . 3 1 1 . 1 5 4 2 . . . . Max Gunslinging Chain 1 | . 1 1 . . 1 1 1 . . . . 1 . . . . 1 . . . . . . 1 1 1 . 1 1 1 1 . . . . Capacitor 655 | . . . . . . . . . . . . . . . . . . . . . . . . . . . . . . . 21 155 117 207 155 Shots Hit Robots 2489 | 8 123 13 . 4 163 101 164 27 . 15 4 328 72 76 6 20 98 53 21 4 8 6 . 99 115 3 . 10 204 84 164 111 81 194 110 Core Hits 1133 | 3 47 5 . 1 68 52 115 12 . 9 2 89 19 20 3 11 67 17 6 2 5 5 . 46 22 3 1 6 80 63 61 44 37 117 95 Critical Kills 74 | . 1 . . . . . . . . . . . . 1 1 3 11 . . . . 1 . 6 5 1 . 3 21 10 4 3 . 1 2 Critical Parts Destroyed 91 | . 1 1 . . 1 . 1 . . . . . . . 1 2 12 . 1 . 1 1 . 8 3 . . . 24 21 13 . . . . Critical Strikes 273 | . 2 1 . . 12 10 7 1 . 1 . 23 3 1 2 5 23 13 6 1 2 2 . 22 22 1 . 3 45 32 17 4 1 9 2 Burn 53 | . . . . . 9 10 6 1 . 1 . 23 3 . . . . . . . . . . . . . . . . . . . . . . Meltdown 7 | . . . . . . . . . . . . . . 1 . . . . . . . . . . . . . . . . . 3 . 1 2 Destroy 172 | . 2 1 . . 1 . . . . . . . . . 2 5 23 . 1 . 1 2 . 14 22 1 . 3 45 32 17 . . . . Blast 7 | . . . . . 2 . . . . . . . . . . . . . . . . . . . . . . . . . . . . 5 . Corrupt 33 | . . . . . . . . . . . . . . . . . . 13 5 1 1 . . 8 . . . . . . . 1 1 3 . Smash 1 | . . . . . . . 1 . . . . . . . . . . . . . . . . . . . . . . . . . . . . Melee Attacks 33 | . . . . . 2 . 16 . . 2 1 2 . . . . . . . . . . . . . . . . . . 5 5 . . . Kinetic 10 | . . . . . . . . . . . . . . . . . . . . . . . . . . . . . . . 5 5 . . . Impact 23 | . . . . . 2 . 16 . . 2 1 2 . . . . . . . . . . . . . . . . . . . . . . . Slashing . | . . . . . . . . . . . . . . . . . . . . . . . . . . . . . . . . . . . . Piercing . | . . . . . . . . . . . . . . . . . . . . . . . . . . . . . . . . . . . . Sneak Attacks 3 | . . . . . . . 3 . . . . . . . . . . . . . . . . . . . . . . . . . . . . Combat Hostiles . | . . . . . . . . . . . . . . . . . . . . . . . . . . . . . . . . . . . . Follow-up Attacks . | . . . . . . . . . . . . . . . . . . . . . . . . . . . . . . . . . . . . Damage Inflicted 104727 | 88 1620 149 . 77 3369 2431 5504 468 . 295 86 6538 1712 2508 195 646 4196 2667 1369 209 628 198 . 4719 2916 56 42 340 4904 3911 6180 4973 4480 14378 22875 Guns 33012 | 88 1530 140 . 45 2316 1977 2981 468 . 246 86 6538 1083 . 66 646 2957 106 84 . 130 198 . 2114 2916 56 . 340 4836 603 462 . . . . Cannons 49895 | . . . . . 884 . . . . 32 . . 552 1947 129 . . 2561 1283 209 108 . . 2123 . . . . . 731 5204 4913 4257 12156 12806 Explosions 20400 | . . . . . 154 454 2173 . . . . . . 543 . . 1198 . . . 390 . . 482 . . . . . 2551 329 . . 2057 10069 Melee 477 | . . . . . . . 304 . . . . . . . . . . . . . . . . . . . . . . . 116 57 . . . Ramming 943 | . 90 9 . 32 15 . 46 . . 17 . . 77 18 . . 41 . 2 . . . . . . . 42 . 68 26 69 3 223 165 . Kinetic 25140 | 88 1530 140 . 45 1229 . 739 166 . 54 16 348 . . 48 646 2957 106 84 . 130 198 . 2692 2916 56 . 340 4836 1334 578 57 . 3547 260 Thermal 51750 | . . . . . 1971 1977 2419 302 . 224 70 6190 1635 1947 147 . . . . . . . . 123 . . . . . . 3999 1663 269 7305 21509 Explosive 6933 | . . . . . 154 454 1877 . . . . . . 543 . . 276 . . . 390 . . 359 . . . . . 2551 329 . . . . Electromagnetic 19657 | . . . . . . . 119 . . . . . . . . . 922 2561 1283 209 108 . . 1545 . . . . . . 1205 3250 3988 3361 1106 Impact 304 | . . . . . . . 304 . . . . . . . . . . . . . . . . . . . . . . . . . . . . Slashing . | . . . . . . . . . . . . . . . . . . . . . . . . . . . . . . . . . . . . Piercing . | . . . . . . . . . . . . . . . . . . . . . . . . . . . . . . . . . . . . Highest Corruption 23 | . . . . . 1 1 11 11 11 23 1 1 1 5 5 5 . 1 . . . . . 3 . . . . 8 1 3 . . . . Average Corruption 3 | . . . . . 1 1 7 11 11 11 1 1 1 3 5 3 . 1 . . . . . 2 . . . . 5 1 2 . . . . Corruption Purged 14 | . . . . . . . . . . . . . . . . 6 . . . . . . . 3 . . . . 5 . . . . . . Corruption Blocked 20 | . . . . . . . . . . . . . . . . . . . . . . . . . . . . . . . . 20 . . . Effects 317 | . . . . . 1 16 35 29 3 49 1 20 16 43 14 4 . 4 . . . . . 8 . . . . 38 3 33 . . . . Message Errors 68 | . . . . . 1 3 6 8 2 9 . 3 1 8 2 1 . 3 . . . . . 3 . . . . 8 . 10 . . . . Matter Fused 83 | . . . . . . 4 9 6 . 14 1 9 4 10 4 2 . . . . . . . 1 . . . . 10 2 7 . . . . Heat Flow Errors 27 | . . . . . . 2 7 1 . 2 . . 1 5 3 . . . . . . . . 1 . . . . 2 . 3 . . . . Energy Discharges 42 | . . . . . . 1 3 5 1 6 . 1 5 10 1 1 . 1 . . . . . . . . . . 3 . 4 . . . . Parts Rejected 2 | . . . . . . . . . . . . . 1 . . . . . . . . . . . . . . . . . 1 . . . . Data Loss (minor) 44 | . . . . . . 2 2 5 . 9 . 1 3 8 2 . . . . . . . . 1 . . . . 8 1 2 . . . . Data Loss (major) 14 | . . . . . . 1 1 2 . 2 . 3 . 1 . . . . . . . . . 1 . . . . 2 . 1 . . . . Misfires 19 | . . . . . . 3 1 2 . 3 . 1 1 1 2 . . . . . . . . . . . . . 1 . 4 . . . . Alerts 11 | . . . . . . . 2 . . 3 . 2 . . . . . . . . . . . 1 . . . . 2 . 1 . . . . Misdirections 1 | . . . . . . . 1 . . . . . . . . . . . . . . . . . . . . . . . . . . . . Weapon Failures 6 | . . . . . . . 3 . . 1 . . . . . . . . . . . . . . . . . . 2 . . . . . . Overload Shots 4 | . . . . . . . 1 . . 1 . . 1 . 1 . . . . . . . . . . . . . . . . . . . . Overflow Damage 2908 | . . . . . 11 . 358 . . . . . 28 48 . . 78 77 184 . 6 . . 113 . . . . 27 96 264 100 238 615 665 Projectiles 1819 | . . . . . 11 . . . . . . . 15 11 . . . 77 184 . . . . 26 . . . . . . 239 100 178 507 471 Explosions 692 | . . . . . . . 134 . . . . . . 37 . . 67 . . . 6 . . 87 . . . . . 90 6 . . 71 194 Melee 397 | . . . . . . . 224 . . . . . 13 . . . 11 . . . . . . . . . . . 27 6 19 . 60 37 . Knockbacks 41 | . . . . . 7 . 1 . . . . . . . . . . . . . . . . 9 . . . . 1 1 1 . 1 20 . Impact 8 | . . . . . . . 1 . . . . . . . . . . . . . . . . . . . . . 1 1 1 . 1 3 . Kinetic 32 | . . . . . 7 . . . . . . . . . . . . . . . . . . 8 . . . . . . . . . 17 . Secondary 1 | . . . . . . . . . . . . . . . . . . . . . . . . 1 . . . . . . . . . . . Self-Inflicted Damage 1087 | . . . . . . . 243 . . 8 . . . . . . 31 . . . 47 . . 31 . . . . . 394 111 . . . 222 Shots 26 | . . . . . . . 7 . . . . . . . . . 2 . . . 1 . . 1 . . . . . 9 2 . . . 4 Rammed 54 | . 10 1 . 3 2 . 5 . . 2 . . 3 1 . . 3 . 1 . . . . . . . 1 . 3 2 1 1 7 8 . Targets Rammed 63 | . 13 1 . 5 2 . 6 . . 2 . . 3 1 . . 3 . 1 . . . . . . . 1 . 3 2 2 1 8 9 . Kicked . | . . . . . . . . . . . . . . . . . . . . . . . . . . . . . . . . . . . . Crushed 9 | . 3 . . 2 . . 1 . . . . . . . . . . . . . . . . . . . . . . . 1 . 1 1 . Highest Temperature 438 | . 16 37 . 4 423 301 229 161 . 122 . 208 299 242 177 . 378 438 268 120 90 . . 53 . . . 14 287 164 187 181 178 178 158 Average Temperature 82 | . 4 16 . 1 71 53 46 19 . 41 . 82 94 93 66 . 77 81 104 60 42 . . 29 . . . 10 64 26 64 104 112 139 84 Received Heat Transfer 6616 | . 519 123 . . 872 619 935 . . 27 . . 336 272 13 9 689 297 38 . . . 20 330 . . 32 30 271 290 306 194 109 228 57 Effects 8 | . . . . . 4 . . . . . . . 1 1 . . . 2 . . . . . . . . . . . . . . . . . Shutdowns 2 | . . . . . 1 . . . . . . . . . . . . 1 . . . . . . . . . . . . . . . . . Energy Bleed 2 | . . . . . . . . . . . . . 1 1 . . . . . . . . . . . . . . . . . . . . . Interference 3 | . . . . . 3 . . . . . . . . . . . . . . . . . . . . . . . . . . . . . . Damage (minor) 1 | . . . . . . . . . . . . . . . . . . 1 . . . . . . . . . . . . . . . . . Siege Activations 83 | . . . . . . . . . . . . . 3 4 . . 5 9 2 2 1 . . 7 . 1 . 1 10 4 8 7 6 8 5 Total Turns 1743 | . . . . . . . . . . . . . 54 100 . . 86 92 28 8 14 . . 151 . 2 . 12 289 145 213 76 59 263 151 Longest Duration 114 | . . . . . . . . . . . . . 32 45 . . 40 30 18 6 14 . . 41 . 2 . 12 54 68 54 19 32 101 114 Robots Corrupted 93 | . . . . . . . . . . . . . . . . . 1 15 6 . . . . 11 . . . . . . 5 16 15 17 7 Combat Hostiles 90 | . . . . . . . . . . . . . . . . . . 15 6 . . . . 11 . . . . . . 5 16 14 16 7 Parts Fried 200 | . . . . . . . 6 . . . . . . . . . 5 20 12 1 2 . . 14 . . . . . . 10 34 44 30 22 Impact Corruptions 22 | . . . . 1 . . 7 . . . . . 2 . . . 1 . . . . . . 1 . . . . 2 1 2 . 2 3 . Robots Melted 14 | . . . . . 1 2 . . . . . . 3 2 . . . . . . . . . . . . . . . . . 3 . 1 2 Combat Hostiles 14 | . . . . . 1 2 . . . . . . 3 2 . . . . . . . . . . . . . . . . . 3 . 1 2 Parts Melted 107 | . . . . . 12 12 14 . . 4 . 9 9 11 3 . . . . . . . . . . . . . . . 6 11 . 16 . Heat Transferred 48379 | . . . . . 4366 3956 4527 666 . 494 111 13505 3107 2950 212 . . . . . . . . 150 . . . . . . 2775 1332 148 3132 6948 Parts Sabotaged . | . . . . . . . . . . . . . . . . . . . . . . . . . . . . . . . . . . . . Parts Stolen 5 | . . . . . . . . . . . . . . . . . . . . . 5 . . . . . . . . . . . . . . Parts Stripped . | . . . . . . . . . . . . . . . . . . . . . . . . . . . . . . . . . . . . Power Chain Reactions 7 | . . . . . . . . . . . . . . . . . . . . . . . . 1 . . . . . . . . . 6 . Missiles Intercepted . | . . . . . . . . . . . . . . . . . . . . . . . . . . . . . . . . . . . . Alert | -11 -10 -10 -10 -9 -8 -8 -7 -7 -7 -6 -6 -6 -6 -6 -6 -6 -6 -6 -5 -5 -5 -5 -4 -4 -4 -4 -4 -3 -3 -2 -2 -2 -1 -1 -1 ------- Run | Scr Mat Min Exi Min Mat Gar Fac Low Dat Pro Fac Was Fac Ext Cet Arc Hub Gar Fac Upp Upp Zhi Pro Fac Was Fac DSF Res Tes Res Qua Sec Acc Com Ac0 Peak Influence 1685 | 10 299 67 . 79 425 798 903 . . . 90 32 185 327 695 478 903 1428 1088 . . . . 448 49 141 314 225 732 916 726 983 1685 1022 . Initial 749 | . 6 37 . . . 276 415 . . . 6 31 . 49 91 278 167 567 749 . . . . . 8 . 98 176 126 99 351 96 589 697 . Average 356 | 4 98 44 . 15 114 618 614 . . . 22 3 60 117 418 449 596 1164 822 . . . . 136 13 118 169 45 324 368 305 646 1204 907 . Maximum Alert Level 5 | . 1 . . . 2 3 3 . . . . . . 1 2 2 3 4 3 . . . . 2 . . 1 1 3 3 3 3 5 5 . Low Security (%) 41 | 100 83 100 . 100 78 . . . . . 100 100 100 87 5 . 10 . . . . . . 67 100 100 63 88 48 46 42 9 . . . Level 1 8 | . 16 . . . 20 16 . . . . . . . 12 44 16 13 . . . . . . 30 . . 36 11 14 22 25 8 . . . Level 2 12 | . . . . . . 45 66 . . . . . . . 49 83 28 2 13 . . . . 1 . . . . 31 10 31 25 8 1 . Level 3 12 | . . . . . . 37 33 . . . . . . . . . 47 18 86 . . . . . . . . . 5 20 . 55 27 10 . Level 4 4 | . . . . . . . . . . . . . . . . . . 79 . . . . . . . . . . . . . . 46 1 . Level 5 19 | . . . . . . . . . . . . . . . . . . . . . . . . . . . . . . . . . 17 87 . High Security . | . . . . . . . . . . . . . . . . . . . . . . . . . . . . . . . . . . . . Max Security . | . . . . . . . . . . . . . . . . . . . . . . . . . . . . . . . . . . . . Squads Dispatched 102 | . 6 . . . 6 . 11 . . 1 2 . 2 2 . . 9 . 5 . . . . 6 . . 2 2 10 6 11 7 12 2 . Investigation 13 | . 4 . . . 2 . . . . . 1 . . . . . . . 2 . . . . . . . . 1 3 . . . . . . Extermination 31 | . . . . . . . 4 . . . 1 . 2 . . . 3 . . . . . . 1 . . . 1 4 1 6 4 2 2 . Reinforcement 26 | . 2 . . . 1 . 2 . . . . . . 2 . . 3 . . . . . . 4 . . 2 . 3 5 1 1 . . . Assault 19 | . . . . . . . 2 . . 1 . . . . . . 2 . 3 . . . . . . . . . . . 2 2 7 . . Garrison 13 | . . . . . 3 . 3 . . . . . . . . . 1 . . . . . . 1 . . . . . . 2 . 3 . . Intercept . | . . . . . . . . . . . . . . . . . . . . . . . . . . . . . . . . . . . . Searches Triggered . | . . . . . . . . . . . . . . . . . . . . . . . . . . . . . . . . . . . . Data Miner Redirects 15 | . . . . . . . . . . . 1 . . . . . 2 . 2 . . . . . . . . 1 1 . 2 3 3 . . Construction Impeded 4 | . . . . . . . 1 . . . . . . 1 . . . . . . . . . 1 . . . . . 1 . . . . . Haulers Reinforced 2 | . . . . . . . 1 . . . . . . . . . . . . . . . . 1 . . . . . . . . . . . Active Scanning Responses 6 | . . . . . . . . . . . . . . . . . . . 2 . . . . . . . . 1 3 . . . . . . Cargo Convoy Interrupts 1 | . . . . . . . 1 . . . . . . . . . . . . . . . . . . . . . . . . . . . . Stealth | -11 -10 -10 -10 -9 -8 -8 -7 -7 -7 -6 -6 -6 -6 -6 -6 -6 -6 -6 -5 -5 -5 -5 -4 -4 -4 -4 -4 -3 -3 -2 -2 -2 -1 -1 -1 --------- Run | Scr Mat Min Exi Min Mat Gar Fac Low Dat Pro Fac Was Fac Ext Cet Arc Hub Gar Fac Upp Upp Zhi Pro Fac Was Fac DSF Res Tes Res Qua Sec Acc Com Ac0 Distress Signals 37 | . 2 . . . 3 1 2 . . . . . . 2 2 . 3 . . . . . . 2 . . . 1 3 . . 3 . 13 . Communications Jammed 56 | . . . . . . . . . . . . . . . . . . . . . . . . 16 . . . . 10 30 . . . . . Distress Signals 55 | . . . . . . . . . . . . . . . . . . . . . . . . 15 . . . . 10 30 . . . . . Times Spotted 759 | . 36 4 . 2 51 31 52 . . 8 1 5 13 28 16 9 44 29 15 2 9 . 4 37 6 2 10 7 44 37 50 43 41 66 57 Peak Tracking Total 11 | . 5 2 . 3 6 6 10 . . 6 1 2 4 5 5 1 7 8 4 2 5 . 4 6 2 2 5 4 4 8 7 5 7 11 4 Tactical Retreats 43 | . 1 . . . . 1 2 . . . . . 2 1 1 . 5 4 1 . 1 . . 2 . . . 1 1 10 4 1 4 1 . Traps | -11 -10 -10 -10 -9 -8 -8 -7 -7 -7 -6 -6 -6 -6 -6 -6 -6 -6 -6 -5 -5 -5 -5 -4 -4 -4 -4 -4 -3 -3 -2 -2 -2 -1 -1 -1 ------- Run | Scr Mat Min Exi Min Mat Gar Fac Low Dat Pro Fac Was Fac Ext Cet Arc Hub Gar Fac Upp Upp Zhi Pro Fac Was Fac DSF Res Tes Res Qua Sec Acc Com Ac0 Traps Triggered 34 | . 3 . . . . 7 5 . . . 1 . 1 3 . . 1 . . . . . . 3 . . 1 . 3 1 3 1 . 1 . Indirectly 3 | . . . . . . . 3 . . . . . . . . . . . . . . . . . . . . . . . . . . . . Trap Hack Attempts . | . . . . . . . . . . . . . . . . . . . . . . . . . . . . . . . . . . . . Triggered . | . . . . . . . . . . . . . . . . . . . . . . . . . . . . . . . . . . . . Disarmed 13 | . . . . . . . 6 . . . . . . . . . . . . . . . . 2 . 1 . . . . 4 . . . . Reprogrammed . | . . . . . . . . . . . . . . . . . . . . . . . . . . . . . . . . . . . . Reused . | . . . . . . . . . . . . . . . . . . . . . . . . . . . . . . . . . . . . Traps Extracted . | . . . . . . . . . . . . . . . . . . . . . . . . . . . . . . . . . . . . Installed . | . . . . . . . . . . . . . . . . . . . . . . . . . . . . . . . . . . . . Triggered 5 | . . . . . . . 1 . . 2 . . . . . . . . . . . . . . . . . . . . . 2 . . . Most Traps Carried 2 | . . 2 2 . . . . . . . . . . . . . . . . . . . . . . . . . . . . . . . . Machines | -11 -10 -10 -10 -9 -8 -8 -7 -7 -7 -6 -6 -6 -6 -6 -6 -6 -6 -6 -5 -5 -5 -5 -4 -4 -4 -4 -4 -3 -3 -2 -2 -2 -1 -1 -1 ---------- Run | Scr Mat Min Exi Min Mat Gar Fac Low Dat Pro Fac Was Fac Ext Cet Arc Hub Gar Fac Upp Upp Zhi Pro Fac Was Fac DSF Res Tes Res Qua Sec Acc Com Ac0 Machines Disabled 95 | . . . . . 1 1 11 . . . . . 2 1 3 4 18 6 2 . . 2 1 2 . 2 . . 8 2 8 12 2 2 5 Max in Single Turn 8 | . . . . . 1 1 8 . . . . . 2 . 1 1 8 1 1 . . 1 1 1 . 1 . . 1 1 1 1 1 1 1 Garrison Access 8 | . . . . . . . 1 . . . . . . . . . . . . . . . . 2 . . . . 1 . 1 1 2 . . Garrison Relay 6 | . . . . . . 2 . . . . . . . . . . . 4 . . . . . . . . . . . . . . . . . Network Hub 2 | . . . . . . . . . . . . . . . . . 2 . . . . . . . . . . . . . . . . . . Machines Sabotaged . | . . . . . . . . . . . . . . . . . . . . . . . . . . . . . . . . . . . . Garrisons Compromised . | . . . . . . . . . . . . . . . . . . . . . . . . . . . . . . . . . . . . Overloaded Fab Kills . | . . . . . . . . . . . . . . . . . . . . . . . . . . . . . . . . . . . . Hacking | -11 -10 -10 -10 -9 -8 -8 -7 -7 -7 -6 -6 -6 -6 -6 -6 -6 -6 -6 -5 -5 -5 -5 -4 -4 -4 -4 -4 -3 -3 -2 -2 -2 -1 -1 -1 --------- Run | Scr Mat Min Exi Min Mat Gar Fac Low Dat Pro Fac Was Fac Ext Cet Arc Hub Gar Fac Upp Upp Zhi Pro Fac Was Fac DSF Res Tes Res Qua Sec Acc Com Ac0 Machines Accessed 96 | . 6 . 2 1 8 . 2 . 3 . 1 . 6 6 1 . 5 . 2 . . 4 . 4 . 2 . 2 7 4 13 9 6 2 . Terminals 70 | . 5 . . . 7 . 2 . . . . . 4 5 1 . 4 . 2 . . . . 2 . 2 . 2 6 4 10 8 4 2 . Fabricators . | . . . . . . . . . . . . . . . . . . . . . . . . . . . . . . . . . . . . Repair Stations 5 | . 1 . . . . . . . . . . . 2 1 . . . . . . . . . . . . . . . . 1 . . . . Recycling Units . | . . . . . . . . . . . . . . . . . . . . . . . . . . . . . . . . . . . . Scanalyzers 1 | . . . . . . . . . . . . . . . . . . . . . . . . . . . . . . . 1 . . . . Garrison Access 10 | . . . . . 1 . . . . . 1 . . . . . 1 . . . . . . 2 . . . . 1 . 1 1 2 . . Total Hacks 353 | . 29 . 2 1 26 . 8 . 25 . 1 . 13 22 2 . 11 . 5 . . 17 . 17 . 10 . 13 28 14 54 34 17 4 . Successful 152 | . 11 . 2 1 12 . 5 . 25 . 1 . 3 11 . . 2 . 1 . . 17 . 6 . 3 . 5 8 6 17 10 5 1 . Failed 200 | . 17 . . . 14 . 3 . . . . . 10 11 2 . 9 . 4 . . . . 11 . 7 . 8 20 8 37 24 12 3 . Catastrophic 53 | . 2 . . . 2 . 2 . . . . . 2 1 1 . 2 . 1 . . . . 2 . 1 . 3 8 3 11 7 4 1 . Database Lockouts 1 | . 1 . . . . . . . . . . . . . . . . . . . . . . . . . . . . . . . . . . Manual 100 | . 14 . 1 . 9 . 6 . . . 1 . 5 8 1 . 7 . 1 . . . . 13 . . . . . 4 10 8 12 . . Terminals 266 | . 22 . . . 24 . 8 . . . . . 10 12 2 . 10 . 5 . . . . 15 . 10 . 13 27 14 45 32 13 4 . Fabricators . | . . . . . . . . . . . . . . . . . . . . . . . . . . . . . . . . . . . . Repair Stations 26 | . 7 . . . . . . . . . . . 3 10 . . . . . . . . . . . . . . . . 6 . . . . Recycling Units . | . . . . . . . . . . . . . . . . . . . . . . . . . . . . . . . . . . . . Scanalyzers 2 | . . . . . . . . . . . . . . . . . . . . . . . . . . . . . . . 2 . . . . Garrison Access 14 | . . . . . 2 . . . . . 1 . . . . . 1 . . . . . . 2 . . . . 1 . 1 2 4 . . Terminal Hacks 122 | . 4 . 2 1 10 . 5 . 25 . . . 1 4 . . 1 . 1 . . 17 . 4 . 3 . 5 7 6 13 8 4 1 . Record 14 | . . . 1 . . . . . 6 . . . . . . . . . . . . 5 . . . . . . . . 1 . 1 . . Part Schematic 18 | . . . . . 1 . . . 11 . . . . . . . . . . . . 4 . . . . . . . . 2 . . . . Robot Schematic 5 | . . . . . . . . . 5 . . . . . . . . . . . . . . . . . . . . . . . . . . Robot Analysis 7 | . 1 . . . 1 . . . . . . . . . . . . . . . . 4 . . . . . . 1 . . . . . . Prototype ID Bank 9 | . . . . . . . . . 3 . . . . . . . . . . . . 4 . . . . . . 1 . 1 . . . . Open Door 6 | . . . . 1 . . . . . . . . . . . . . . . . . . . . . . . . 1 . . 3 . 1 . Open DSF 4 | . . . . . . . . . . . . . 1 . . . . . . . . . . . . 1 . . . 2 . . . . . Branch Access Points 5 | . . . . . . . 1 . . . . . . . . . . . 1 . . . . 1 . . . 1 . 1 . . . . . Emergency Access Points 1 | . . . . . . . . . . . . . . . . . . . . . . . . . . . . . . . 1 . . . . Scanalyzer Index 1 | . . . . . . . . . . . . . . . . . . . . . . . . . . . . . 1 . . . . . . Garrison Index 2 | . . . . . . . 1 . . . . . . . . . . . . . . . . . . . . . . . . 1 . . . Alert Level 2 | . . . . . 1 . . . . . . . . . . . . . . . . . . . . . . . . . . 1 . . . Unreport Threat 18 | . 1 . . . 2 . 2 . . . . . . 2 . . 1 . . . . . . 1 . . . 2 . 2 2 . 3 . . Locate Traps 9 | . . . . . 1 . . . . . . . . . . . . . . . . . . . . 1 . 1 1 . 2 3 . . . Disarm Traps 5 | . . . . . . . 1 . . . . . . . . . . . . . . . . 2 . 1 . . . . 1 . . . . Transport Status 1 | . . . . . 1 . . . . . . . . . . . . . . . . . . . . . . . . . . . . . . Recall Investigation 1 | . . . . . 1 . . . . . . . . . . . . . . . . . . . . . . . . . . . . . . Hauler Manifests 4 | . 1 . . . 1 . . . . . . . . . . . . . . . . . . . . . . . 1 . 1 . . . . Zone Layout 9 | . 1 . . . 1 . . . . . . . . 2 . . . . . . . . . . . . . 1 1 1 2 . . . . EX-Prototype ID Bank 1 | . . . 1 . . . . . . . . . . . . . . . . . . . . . . . . . . . . . . . . Fabricator Hacks . | . . . . . . . . . . . . . . . . . . . . . . . . . . . . . . . . . . . . Repair Station Hacks 14 | . 4 . . . . . . . . . . . 2 7 . . . . . . . . . . . . . . . . 1 . . . . Scan Component 8 | . 2 . . . . . . . . . . . 1 4 . . . . . . . . . . . . . . . . 1 . . . . Repair 6 | . 2 . . . . . . . . . . . 1 3 . . . . . . . . . . . . . . . . . . . . . Recycling Unit Hacks . | . . . . . . . . . . . . . . . . . . . . . . . . . . . . . . . . . . . . Scanalyzer . | . . . . . . . . . . . . . . . . . . . . . . . . . . . . . . . . . . . . Garrison Access Hacks 6 | . . . . . 1 . . . . . . . . . . . 1 . . . . . . 2 . . . . 1 . 1 . . . . Unlock Access 2 | . . . . . 1 . . . . . . . . . . . 1 . . . . . . . . . . . . . . . . . . Seal Access 4 | . . . . . . . . . . . . . . . . . . . . . . . . 2 . . . . 1 . 1 . . . . Unauthorized Hacks 10 | . 3 . . . 1 . . . . . 1 . . . . . . . . . . . . . . . . . . . 2 2 1 . . Terminals 7 | . 3 . . . . . . . . . . . . . . . . . . . . . . . . . . . . . 1 2 1 . . Assimilate 1 | . 1 . . . . . . . . . . . . . . . . . . . . . . . . . . . . . . . . . . Botnet 1 | . . . . . . . . . . . . . . . . . . . . . . . . . . . . . . . . . 1 . . Operators 5 | . 2 . . . . . . . . . . . . . . . . . . . . . . . . . . . . . 1 2 . . . Fabricators . | . . . . . . . . . . . . . . . . . . . . . . . . . . . . . . . . . . . . Repair Stations . | . . . . . . . . . . . . . . . . . . . . . . . . . . . . . . . . . . . . Recycling Units . | . . . . . . . . . . . . . . . . . . . . . . . . . . . . . . . . . . . . Scanalyzers 1 | . . . . . . . . . . . . . . . . . . . . . . . . . . . . . . . 1 . . . . Researchers 1 | . . . . . . . . . . . . . . . . . . . . . . . . . . . . . . . 1 . . . . Garrison Access 2 | . . . . . 1 . . . . . 1 . . . . . . . . . . . . . . . . . . . . . . . . Restock 1 | . . . . . 1 . . . . . . . . . . . . . . . . . . . . . . . . . . . . . . Eject 1 | . . . . . . . . . . . 1 . . . . . . . . . . . . . . . . . . . . . . . . Data Cores Recovered 1 | . . . . . 1 . . . . . . . . . . . . . . . . . . . . . . . . . . . . . . Used . | . . . . . . . . . . . . . . . . . . . . . . . . . . . . . . . . . . . . Hacking Detections 68 | . 6 . . . 7 . 2 . . . . . 5 5 1 . 4 . 2 . . . . 2 . 1 . 1 5 2 11 7 6 1 . Full Trace Events 6 | . 3 . . . 3 . . . . . . . . . . . . . . . . . . . . . . . . . . . . . . Feedback Events . | . . . . . . . . . . . . . . . . . . . . . . . . . . . . . . . . . . . . Feedback Blocked . | . . . . . . . . . . . . . . . . . . . . . . . . . . . . . . . . . . . . Robot Schematics Acquired 6 | . . . . . . . . . 5 . . . . . . . . . . . . . . . . . . . 1 . . . . . . Robots Built . | . . . . . . . . . . . . . . . . . . . . . . . . . . . . . . . . . . . . Authchips . | . . . . . . . . . . . . . . . . . . . . . . . . . . . . . . . . . . . . Time . | . . . . . . . . . . . . . . . . . . . . . . . . . . . . . . . . . . . . Total Robot Build Rating . | . . . . . . . . . . . . . . . . . . . . . . . . . . . . . . . . . . . . Part Schematics Acquired 26 | . . . . . 1 . . . 11 . . . . . . . . . . . . 4 . . . . . . 8 . 2 . . . . Parts Built . | . . . . . . . . . . . . . . . . . . . . . . . . . . . . . . . . . . . . Authchips . | . . . . . . . . . . . . . . . . . . . . . . . . . . . . . . . . . . . . Time . | . . . . . . . . . . . . . . . . . . . . . . . . . . . . . . . . . . . . Total Part Build Rating . | . . . . . . . . . . . . . . . . . . . . . . . . . . . . . . . . . . . . Parts Repaired 6 | . 2 . . . . . . . . . . . 1 3 . . . . . . . . . . . . . . . . . . . . . Time 351 | . 52 . . . . . . . . . . . 95 204 . . . . . . . . . . . . . . . . . . . . . Parts Recycled . | . . . . . . . . . . . . . . . . . . . . . . . . . . . . . . . . . . . . Recycled Matter . | . . . . . . . . . . . . . . . . . . . . . . . . . . . . . . . . . . . . Retrieved Matter . | . . . . . . . . . . . . . . . . . . . . . . . . . . . . . . . . . . . . Retrieved Components . | . . . . . . . . . . . . . . . . . . . . . . . . . . . . . . . . . . . . Parts Scanalyzed . | . . . . . . . . . . . . . . . . . . . . . . . . . . . . . . . . . . . . Part Schematics Acquired . | . . . . . . . . . . . . . . . . . . . . . . . . . . . . . . . . . . . . Parts Damaged . | . . . . . . . . . . . . . . . . . . . . . . . . . . . . . . . . . . . . Bothacking | -11 -10 -10 -10 -9 -8 -8 -7 -7 -7 -6 -6 -6 -6 -6 -6 -6 -6 -6 -5 -5 -5 -5 -4 -4 -4 -4 -4 -3 -3 -2 -2 -2 -1 -1 -1 ------------ Run | Scr Mat Min Exi Min Mat Gar Fac Low Dat Pro Fac Was Fac Ext Cet Arc Hub Gar Fac Upp Upp Zhi Pro Fac Was Fac DSF Res Tes Res Qua Sec Acc Com Ac0 Used RIF Installer 2 | . . . . . . 1 . . . . . . . . . . . 1 . . . . . . . . . . . . . . . . . Signal Jammer 1 | . . . . . . . . . . . . . . . . . . 1 . . . . . . . . . . . . . . . . . Robots Hacked 20 | . . . . . . . . . . . . 5 . 1 . . . . . . . . . 5 6 . . . 1 . 1 1 . . . Non-combat 7 | . . . . . . . . . . . . . . . . . . . . . . . . 5 . . . . 1 . 1 . . . . Combat 12 | . . . . . . . . . . . . 5 . . . . . . . . . . . . 6 . . . . . . 1 . . . Robot Hacks Applied 31 | . . . . . . . . . . . . 5 . . . . . . . . . . . 7 6 . . . 6 . 6 1 . . . parse_system 1 | . . . . . . . . . . . . . . . . . . . . . . . . . . . . . . . . 1 . . . drop_inventory 2 | . . . . . . . . . . . . . . . . . . . . . . . . 2 . . . . . . . . . . . ignore_parts 1 | . . . . . . . . . . . . . . . . . . . . . . . . 1 . . . . . . . . . . . purge_threat 13 | . . . . . . . . . . . . . . . . . . . . . . . . 3 . . . . 5 . 5 . . . . locate_traps 1 | . . . . . . . . . . . . . . . . . . . . . . . . . . . . . . . 1 . . . . block_reporting 1 | . . . . . . . . . . . . . . . . . . . . . . . . . . . . . 1 . . . . . . ignore_targets 11 | . . . . . . . . . . . . 5 . . . . . . . . . . . . 6 . . . . . . . . . . overload_power 1 | . . . . . . . . . . . . . . . . . . . . . . . . 1 . . . . . . . . . . . Manual 1 | . . . . . . . . . . . . . . 1 . . . . . . . . . . . . . . . . . . . . . Relay Couplers Released 45 | . . . . . 3 8 1 . . . 4 . . . . . . 19 . . . . . . . . . . . . 4 2 4 . . Ejected 4 | . . . . . . . . . . . 4 . . . . . . . . . . . . . . . . . . . . . . . . Machine Destruction 34 | . . . . . . 8 1 . . . . . . . . . . 19 . . . . . . . . . . . . . 2 4 . . Programmers 7 | . . . . . 3 . . . . . . . . . . . . . . . . . . . . . . . . . 4 . . . . Attached 10 | . . . . . . 1 . . . . 1 . . . . . . 2 . . . . . 1 . . . . 2 . 3 . . . . Fabnet Peak Effective % . | . . . . . . . . . . . . . . . . . . . . . . . . . . . . . . . . . . . . Robots Rewired 15 | . . . . . . 4 . . . . . . . 11 . . . . . . . . . . . . . . . . . . . . . Allies Hacked . | . . . . . . . . . . . . . . . . . . . . . . . . . . . . . . . . . . . . Hacks Repelled . | . . . . . . . . . . . . . . . . . . . . . . . . . . . . . . . . . . . . Allies | -11 -10 -10 -10 -9 -8 -8 -7 -7 -7 -6 -6 -6 -6 -6 -6 -6 -6 -6 -5 -5 -5 -5 -4 -4 -4 -4 -4 -3 -3 -2 -2 -2 -1 -1 -1 -------- Run | Scr Mat Min Exi Min Mat Gar Fac Low Dat Pro Fac Was Fac Ext Cet Arc Hub Gar Fac Upp Upp Zhi Pro Fac Was Fac DSF Res Tes Res Qua Sec Acc Com Ac0 Total Allies 78 | . 1 5 . . . 4 . . . 1 . 19 . 20 5 . 3 . . . . . . . 20 . . . . . . . . . . Largest Group 19 | . 1 6 4 4 1 4 . . . 1 1 19 . 14 15 7 3 . . . . . . . 19 17 16 6 1 . . . . . . Highest-Rated Group 939 | . 10 92 50 50 10 64 . . . 96 91 684 . 599 939 461 121 . . . . . . . 702 602 556 196 27 . . . . . . Highest-Rated Ally 159 | . 10 31 16 16 10 16 . . . 96 91 91 . 159 159 159 82 . . . . . . . 50 46 46 46 27 . . . . . . Total Orders 2 | . . . 1 . . 1 . . . . . . . . . . . . . . . . . . . . . . . . . . . . . STAY 2 | . . . 1 . . 1 . . . . . . . . . . . . . . . . . . . . . . . . . . . . . Ally Attacks 504 | . . 14 . 13 . 39 . . . 13 3 13 . 82 162 23 26 . . . . . . . 8 21 85 2 . . . . . . . Total Damage 10047 | . . 177 . 164 . 342 . . . 528 120 411 . 1840 3295 381 517 . . . . . . . 139 264 1815 54 . . . . . . . Kills 66 | . . 2 . 5 . 3 . . . 4 . . . 16 24 3 2 . . . . . . . . . 7 . . . . . . . . Allies Corrupted . | . . . . . . . . . . . . . . . . . . . . . . . . . . . . . . . . . . . . Allies Melted 1 | . . . . . . . . . . . . . . . . . . . . . . . . . . . . 1 . . . . . . . Intel | -11 -10 -10 -10 -9 -8 -8 -7 -7 -7 -6 -6 -6 -6 -6 -6 -6 -6 -6 -5 -5 -5 -5 -4 -4 -4 -4 -4 -3 -3 -2 -2 -2 -1 -1 -1 ------- Run | Scr Mat Min Exi Min Mat Gar Fac Low Dat Pro Fac Was Fac Ext Cet Arc Hub Gar Fac Upp Upp Zhi Pro Fac Was Fac DSF Res Tes Res Qua Sec Acc Com Ac0 Robot Analysis Total 7 | . 1 . . . 1 . . . . . . . . . . . . . . . . 4 . . . . . . 1 . . . . . . Derelict Logs Recovered 7 | . . . . 2 . . . 1 . 1 . . . . . . . . . 1 1 . 1 . . . . . . . . . . . . Drone Launches . | . . . . . . . . . . . . . . . . . . . . . . . . . . . . . . . . . . . . Drone Recoveries . | . . . . . . . . . . . . . . . . . . . . . . . . . . . . . . . . . . . . Exploration | -11 -10 -10 -10 -9 -8 -8 -7 -7 -7 -6 -6 -6 -6 -6 -6 -6 -6 -6 -5 -5 -5 -5 -4 -4 -4 -4 -4 -3 -3 -2 -2 -2 -1 -1 -1 ------------- Run | Scr Mat Min Exi Min Mat Gar Fac Low Dat Pro Fac Was Fac Ext Cet Arc Hub Gar Fac Upp Upp Zhi Pro Fac Was Fac DSF Res Tes Res Qua Sec Acc Com Ac0 Turns Passed 46819 | 116 2176 767 984 1440 2706 1818 1595 782 127 1451 298 1975 1878 1958 638 383 1282 1685 676 270 317 341 551 1102 1043 219 94 271 2045 775 2363 2119 824 8819 931 Spaces Moved 19604 | 51 873 305 399 574 863 566 434 519 91 883 173 511 609 763 225 73 336 824 307 147 157 170 224 418 483 104 55 147 746 335 1137 1115 431 4188 368 Core 11 | 4 . . . . . . . . . . . . . . . . . . . . . . . . . . . . . . . . . . 7 Treads 17828 | 47 873 305 399 574 862 566 407 . . . . 440 609 763 225 73 336 824 307 147 157 170 224 418 483 104 55 147 746 335 1137 1115 431 4188 361 Legs 1 | . . . . . 1 . . . . . . . . . . . . . . . . . . . . . . . . . . . . . . Wheels 1764 | . . . . . . . 27 519 91 883 173 71 . . . . . . . . . . . . . . . . . . . . . . . Hover . | . . . . . . . . . . . . . . . . . . . . . . . . . . . . . . . . . . . . Flight . | . . . . . . . . . . . . . . . . . . . . . . . . . . . . . . . . . . . . Fastest Speed 50 | 50 160 240 240 240 160 232 135 135 135 135 150 150 255 160 240 240 160 160 160 160 160 160 240 160 160 160 160 150 150 150 150 143 143 143 50 Average Speed 178 | 154 203 240 240 240 231 234 235 139 136 149 150 239 255 188 240 241 225 160 160 163 160 185 240 160 160 160 160 152 151 151 152 146 143 150 149 Slowest Speed 540 | 160 240 240 240 240 540 240 320 150 150 150 150 255 255 255 240 320 240 160 160 240 160 240 240 240 160 240 160 160 155 232 238 227 227 227 151 Overloaded Moves . | . . . . . . . . . . . . . . . . . . . . . . . . . . . . . . . . . . . . Propulsion Burnouts . | . . . . . . . . . . . . . . . . . . . . . . . . . . . . . . . . . . . . Robots Hopped . | . . . . . . . . . . . . . . . . . . . . . . . . . . . . . . . . . . . . Cave-ins Triggered . | . . . . . . . . . . . . . . . . . . . . . . . . . . . . . . . . . . . . Teleports 2 | . . . . . . . . . . . . . . . . . . . . . . . . . . . . . . . . . . 1 1 Exploration Rate (%) 53 | 5 97 57 70 95 66 72 18 55 69 79 6 89 23 84 75 66 41 75 14 29 39 60 38 20 95 4 84 6 86 10 89 70 24 86 40 Regions Visited 35 Branch Regions 19 Pre-discovered Areas 8 | . . . 1 2 . . . . 1 . . . . . . . . . . . . 3 1 . . . . . . . . . . . . Known Exits Taken 13 | . . . . . 1 . 1 . 1 1 . . . 1 1 1 1 . 1 1 . . . . . 1 . 1 . 1 . . . . . Unknown Exits Taken 15 | 1 1 1 1 1 . . . 1 . . . . 1 . . . . . . . 1 1 1 . . . . . 1 . 1 1 1 1 . Scrap Searched 11 | . . 1 . 2 . . . 2 . 1 . . . . . . . . . 2 1 . 2 . . . . . . . . . . . . Spaces Dug 209 | . . . . . 2 . 13 . . 9 1 2 10 34 . . 12 . 5 . . . . 2 . . . 3 16 3 14 14 3 7 59 Terrain Destroyed 1958 | . . . . . 23 13 111 . . 14 1 2 43 50 . 3 370 1 9 . 14 1 . 27 25 1 . 3 25 99 86 25 12 21 979 Melee 20 | . . . . . 2 . 13 . . 2 1 2 . . . . . . . . . . . . . . . . . . . . . . . Projectile 282 | . . . . . 6 1 . . . 12 . . 16 8 . 3 29 1 9 . 2 1 . 16 25 1 . 3 25 3 27 25 12 21 36 AOE 1653 | . . . . . 15 12 98 . . . . . 27 42 . . 341 . . . 12 . . 11 . . . . . 94 58 . . . 943 Terrain Rammed . | . . . . . . . . . . . . . . . . . . . . . . . . . . . . . . . . . . . . Walls Destroyed . | . . . . . . . . . . . . . . . . . . . . . . . . . . . . . . . . . . . . Machines Disabled . | . . . . . . . . . . . . . . . . . . . . . . . . . . . . . . . . . . . . Actions | -11 -10 -10 -10 -9 -8 -8 -7 -7 -7 -6 -6 -6 -6 -6 -6 -6 -6 -6 -5 -5 -5 -5 -4 -4 -4 -4 -4 -3 -3 -2 -2 -2 -1 -1 -1 --------- Run | Scr Mat Min Exi Min Mat Gar Fac Low Dat Pro Fac Was Fac Ext Cet Arc Hub Gar Fac Upp Upp Zhi Pro Fac Was Fac DSF Res Tes Res Qua Sec Acc Com Ac0 Total 28727 | 71 1093 324 429 622 1362 914 749 546 94 966 207 901 826 1186 320 252 711 1128 449 172 217 186 233 712 629 152 63 179 1360 498 1595 1587 632 6650 712 Wait 4804 | . 76 . 22 33 278 98 71 . . 24 . 128 111 271 68 148 220 203 69 16 34 . . 62 40 41 . 11 334 34 84 172 57 1994 105 Move 19571 | 50 872 304 398 573 862 564 433 518 90 883 173 510 608 762 224 72 336 823 306 146 156 169 223 418 482 103 54 146 745 334 1136 1114 430 4187 367 Hop . | . . . . . . . . . . . . . . . . . . . . . . . . . . . . . . . . . . . . Pick Up 390 | 8 21 3 3 . 36 8 18 5 . 6 11 13 10 6 8 2 12 11 5 . 3 7 4 26 11 . 3 1 13 16 44 17 1 36 22 Fast Attach 210 | 6 8 2 . 2 13 9 11 1 2 . 2 8 5 3 2 5 4 6 4 1 . 2 . 14 3 3 . 5 13 4 19 26 2 23 2 Attach 189 | . 3 2 . . 14 6 21 . . 2 7 . . 11 . 2 10 2 4 . 10 2 . 17 . . 1 . 7 10 20 18 3 10 7 Detach 122 | . . 1 . . 3 2 7 . . . 2 1 . 3 . 1 8 4 6 2 3 1 . 15 . . 1 2 3 7 16 21 2 7 4 Swap 428 | . 2 . . 1 11 12 38 3 . 17 2 11 20 26 5 . 31 3 7 2 1 . 4 23 9 . . 2 64 14 56 15 5 30 14 Drop 475 | . 11 2 6 3 30 14 11 2 2 5 6 29 12 6 10 7 14 13 7 1 4 . . 36 15 3 3 4 22 15 64 33 3 58 24 Fire 2252 | 7 87 9 . 5 111 78 117 17 . 26 3 199 57 61 3 15 73 63 40 4 6 5 2 101 69 2 . 8 156 62 149 165 121 264 167 Melee 33 | . . . . . 2 . 16 . . 2 1 2 . . . . . . . . . . . . . . . . . . 5 5 . . . Ram 1 | . . . . . . . . . . 1 . . . . . . . . . . . . . . . . . . . . . . . . . Kick . | . . . . . . . . . . . . . . . . . . . . . . . . . . . . . . . . . . . . Crush 61 | . 13 1 . 5 2 . 6 . . . . . 3 1 . . 3 . 1 . . . . . . . 1 . 3 2 2 1 8 9 . Escape Stasis 14 | . . . . . . 12 . . . . . . . 2 . . . . . . . . . . . . . . . . . . . . . Rewire 177 | . . . . . . 111 . . . . . . . 34 . . . . . . . . . . . . . . . . . . . 32 . Trap . | . . . . . . . . . . . . . . . . . . . . . . . . . . . . . . . . . . . . Miscellaneous . | . . . . . . . . . . . . . . . . . . . . . . . . . . . . . . . . . . . . Route ------- -11/Scrapyard -10/Materials (discovered 5 exits: [*Mat x3] / [*Min x2]) -10/Mines -10/Exiles -9/Mines (discovered 2 exits: *Mat x2) -8/Materials (discovered 3 exits: *Fac x2 / Gar) -8/Garrison (discovered 2 exits: *Fac x2) -7/Factory (discovered 2 exits: *Low x2) -7/Lower Caves -7/Data Miner -6/Proximity Caves -6/Factory -6/Waste -6/Factory -6/Extension (discovered 2 exits: *Fac / *Cet) -6/Cetus (discovered 2 exits: *Fac / *Arc) -6/Archives -6/Hub_04(d) (discovered 3 exits: *Fac x2 / Gar) -6/Garrison (discovered 3 exits: *Fac x3) -5/Factory (discovered 2 exits: *Upp x2) -5/Upper Caves -5/Upper Caves -5/Zhirov -4/Proximity Caves -4/Factory (discovered 2 exits: *Upp x2) -4/Waste -4/Factory -4/DSF -3/Research (discovered 3 exits: Arm / *Tes x2) -3/Testing -2/Research (discovered 2 exits: *Qua x2) -2/Quarantine (discovered 2 exits: *Acc / *Sec) -2/Section 7 -1/Access -1/Command (discovered 3 exits: [*Sur x2] / [*Ac0]) -1/Access_0 Near Former Tau Ceti IV History --------- Turn | Location | Event 31 | -11/Scrapyard | Discovered new exit (range 16) 117 | -11/Scrapyard | Entered Materials 308 | -10/Materials | Build established: Mutant 323 | -10/Materials | Discovered new exit (range 15) 358 | -10/Materials | Central database locked down 430 | -10/Materials | Repaired Assault Rifle 458 | -10/Materials | Repaired Assault Rifle 724 | -10/Materials | Discovered new exit (range 8) 945 | -10/Materials | Discovered new exit (range 14) 1034 | -10/Materials | Discovered new exit (range 6) 1735 | -10/Materials | Core integrity fell below 50% 1801 | -10/Materials | Lost 3 parts (1n2w) 1879 | -10/Materials | Discovered new exit (range 11) 2293 | -10/Materials | Entered Mines 2293 | -10/Mines | Accompanied by 1 ally 2592 | -10/Mines | Assisted by bots powering up and referring to "LRC-V3" 2804 | -10/Mines | Found a hidden stash of uninstalled traps 2894 | -10/Mines | Build established: Commander-Mutant 2912 | -10/Mines | Found a damaged Exp. Sensor Array with a note attached 2917 | -10/Mines | Found Prototype Device 2917 | -10/Mines | Identified Exp. Sensor Array 3048 | -10/Mines | Deemed a non-threat by the Exiles lab entrance 3048 | -10/Mines | Discovered new exit (range 5) 3060 | -10/Mines | Entered Exiles 3060 | -10/Exiles | Accompanied by 4 allies 3118 | -10/Exiles | Met 8R-AWN 3159 | -10/Exiles | Met EX-HEX 3269 | -10/Exiles | Met EX-DEC 3312 | -10/Exiles | Learned location of Zion (-6) 3495 | -10/Exiles | Discovered new exit (range 12) 3697 | -10/Exiles | Met EX-BIN 3723 | -10/Exiles | Aligned with FarCom system 3726 | -10/Exiles | Given EX-Vault access code 3781 | -10/Exiles | Opened EX-Vault 3796 | -10/Exiles | Found 0b10 Alert Chip 3802 | -10/Exiles | Found Cloak of Protection 3815 | -10/Exiles | Found Flying Fortress v7 3868 | -10/Exiles | Warned to stay clear of 0b10 Research branches 4044 | -10/Exiles | Stole three prototypes: Flying Fortress v7, 0b10 Alert Chip, Cloak of Protection 4044 | -10/Exiles | Entered Mines 4044 | -9/Mines | Accompanied by 4 allies 4102 | -9/Mines | Discovered new exit (range 6) 4150 | -9/Mines | Discovered new exit (range 11) 4386 | -9/Mines | Build established: Mutant 4987 | -9/Mines | Found the Drone Emporium 4998 | -9/Mines | Found Prototype Device 4998 | -9/Mines | Identified Splice Drone Bay 5484 | -9/Mines | Entered Materials 5484 | -8/Materials | Accompanied by 1 ally 5484 | -8/Materials | Evolved 4 slots: Propulsion x2, Utility x2 5727 | -8/Materials | Lost 4 parts (2n1u1w) 5984 | -8/Materials | Build established: Scavenger-Mutant 6412 | -8/Materials | Build established: Mutant 6870 | -8/Materials | Build established: Scavenger-Mutant 7093 | -8/Materials | Discovered new exit (range 5) 7473 | -8/Materials | Garrison activated, responded to threat 7576 | -8/Materials | Lost 6 parts (1p3n2u) 8037 | -8/Materials | Discovered new exit (range 10) 8112 | -8/Materials | Identified exit to Garrison 8190 | -8/Materials | Entered Garrison 8202 | -8/Garrison | Installed Relay Interface Framework 8256 | -8/Garrison | Triggered checkpoint 8348 | -8/Garrison | Garrison Relay disabled 8435 | -8/Garrison | Triggered checkpoint 8729 | -8/Garrison | Discovered new exit (range 11) 8794 | -8/Garrison | Triggered checkpoint 8925 | -8/Garrison | Garrison Relay disabled 8926 | -8/Garrison | Core integrity fell below 50% 8957 | -8/Garrison | Build established: Mutant 9261 | -8/Garrison | Build established: Scavenger-Mutant 9308 | -8/Garrison | Triggered checkpoint 9553 | -8/Garrison | Spotted B-75 Beast 9570 | -8/Garrison | Core integrity fell below 20% 9583 | -8/Garrison | Destroyed B-75 Beast 9609 | -8/Garrison | Lost 4 parts (3n1w) 9786 | -8/Garrison | Triggered checkpoint 9975 | -8/Garrison | Discovered new exit (range 12) 10008 | -8/Garrison | Entered Factory 10008 | -7/Factory | Evolved 2 slots: Power x1, Utility x1 10010 | -7/Factory | FarCom data flow suspended 10408 | -7/Factory | First assault squad dispatched 10587 | -7/Factory | Lost 7 parts (1p3n2u1w) 10592 | -7/Factory | Destroyed 8 combat bots 10779 | -7/Factory | Build established: Mutant 11077 | -7/Factory | System corruption reached 10% 11248 | -7/Factory | Identified exit to Lower Caves 11342 | -7/Factory | Garrison activated, responded to threat 11387 | -7/Factory | Build established: Scavenger-Mutant 11444 | -7/Factory | Garrison activated, responded to threat 11479 | -7/Factory | Lost 3 parts (1n1u1w) 11583 | -7/Factory | Cargo convoy interrupted 11603 | -7/Factory | Entered Lower Caves 11714 | -7/Lower Caves | Learned 4 Factory zone layouts 11960 | -7/Lower Caves | Build established: Scavenger-Skirmisher 12058 | -7/Lower Caves | Encountered a Warlord checkpoint 12383 | -7/Lower Caves | A Derelict revealed a hidden shortcut to meet someone special 12385 | -7/Lower Caves | Entered Data Miner 12386 | -7/Data Miner | Discovered new exit (range 6) 12412 | -7/Data Miner | Met Data Miner 12435 | -7/Data Miner | Learned location of Section 7 (-2) 12435 | -7/Data Miner | Acquired the access code to Warlord's prototype stash 12455 | -7/Data Miner | Received God Mode back door access code from Data Miner 12510 | -7/Data Miner | Identified exit to Proximity Caves 12512 | -7/Data Miner | Entered Proximity Caves 12747 | -6/Proximity Caves | Escorted by Enhanced Grunt 13012 | -6/Proximity Caves | Received a Behemoth hack from an annoying Tinkerer 13900 | -6/Proximity Caves | Discovered new exit (range 13) 13925 | -6/Proximity Caves | Identified exit to Factory 13931 | -6/Proximity Caves | Learned Factory terminal intel 13954 | -6/Proximity Caves | Attracted the attention of an 0b10 outpost 13963 | -6/Proximity Caves | Entered Factory 13963 | -6/Factory | Accompanied by 1 ally 13963 | -6/Factory | Evolved 2 slots: Utility x2 13965 | -6/Factory | Loaded intel: 28 terminal locations 13992 | -6/Factory | Lost 4 parts (1p3u) 14147 | -6/Factory | Found Exp. Targeting Computer 14251 | -6/Factory | Incoming investigation squad redirected 14261 | -6/Factory | Sucked down chute 14261 | -6/Factory | Entered Waste 14265 | -6/Waste | Found Broken Adv. Powered Armor 14284 | -6/Waste | Build established: Scavenger-Mutant 14290 | -6/Waste | 1 allies followed down the chute 14315 | -6/Waste | Spotted C-40 Crusher 14334 | -6/Waste | Spotted C-40 Crusher 14340 | -6/Waste | Spotted C-40 Crusher 14341 | -6/Waste | Spotted C-40 Crusher 14444 | -6/Waste | Destroyed C-40 Crusher 14484 | -6/Waste | Spotted C-40 Crusher 14645 | -6/Waste | Spotted C-40 Crusher 14658 | -6/Waste | Destroyed C-40 Crusher 14680 | -6/Waste | Found Damper Plating 14741 | -6/Waste | Destroyed C-40 Crusher 14820 | -6/Waste | Destroyed C-40 Crusher 14882 | -6/Waste | Destroyed C-40 Crusher 14929 | -6/Waste | Destroyed C-40 Crusher 15180 | -6/Waste | Warlord forces began an assault 15379 | -6/Waste | Discovered new exit (range 12) 16078 | -6/Waste | Found Damper Plating 16236 | -6/Waste | Entered Factory 16374 | -6/Factory | Identified exit to DSF 17729 | -6/Factory | Repaired Broken Adv. Powered Armor? 18063 | -6/Factory | Discovered new exit (range 13) 18114 | -6/Factory | Entered Extension 18494 | -6/Extension | Rescued a captive Derelict 18579 | -6/Extension | Rescued a captive Derelict 18968 | -6/Extension | Spotted B-75 Beast 18996 | -6/Extension | Destroyed B-75 Beast 19016 | -6/Extension | Spotted B-75 Beast 19047 | -6/Extension | Befriended a Behemoth using the annoying Tinkerer's hack 19110 | -6/Extension | Rescued A7 19265 | -6/Extension | Rescued a captive Derelict 19536 | -6/Extension | Repaired Hvy. Treads 19634 | -6/Extension | Repaired Antimatter Reactor 19692 | -6/Extension | Rescued a captive Derelict 19693 | -6/Extension | Rescued a captive Derelict 19721 | -6/Extension | Repaired Broken Antimatter Reactor? 19790 | -6/Extension | Build established: Commander-Mutant 19902 | -6/Extension | Rescued a captive Derelict 19903 | -6/Extension | Rescued a captive Derelict 19976 | -6/Extension | Discovered new exit (range 10) 19978 | -6/Extension | Discovered new exit (range 6) 19990 | -6/Extension | Identified exit to Cetus 20072 | -6/Extension | Entered Cetus 20072 | -6/Cetus | Accompanied by 12 allies (A7) 20077 | -6/Cetus | Acquired a Cetus Manufacturing Module code from A7 20101 | -6/Cetus | Spotted Cetus Guard 20101 | -6/Cetus | Spotted Cetus Guard 20102 | -6/Cetus | Spotted Cetus Guard 20103 | -6/Cetus | Allies destroyed Cetus Guard 20107 | -6/Cetus | Allies destroyed Cetus Guard 20112 | -6/Cetus | Allies destroyed Cetus Guard 20367 | -6/Cetus | Started Cetus Manufacturing Module 20392 | -6/Cetus | Manufactured an Enhanced Grunt 20417 | -6/Cetus | Manufactured an Enhanced Grunt 20442 | -6/Cetus | Manufactured an Enhanced Grunt 20464 | -6/Cetus | Escorted A7 to Cetus Mainframe 20467 | -6/Cetus | Manufactured an Enhanced Grunt 20492 | -6/Cetus | Manufactured an Enhanced Grunt 20496 | -6/Cetus | Discovered new exit (range 16) 20539 | -6/Cetus | Spotted Cetus Guard 20540 | -6/Cetus | Spotted Cetus Guard 20541 | -6/Cetus | Spotted Cetus Guard 20541 | -6/Cetus | Spotted Cetus Guard 20550 | -6/Cetus | Allies destroyed Cetus Guard 20555 | -6/Cetus | Allies destroyed Cetus Guard 20557 | -6/Cetus | Discovered new exit (range 16) 20560 | -6/Cetus | Allies destroyed Cetus Guard 20560 | -6/Cetus | Allies destroyed Cetus Guard 20572 | -6/Cetus | Met Revision 17 20682 | -6/Cetus | Identified exit to Archives 20710 | -6/Cetus | Entered Archives 20710 | -6/Archives | Accompanied by 7 allies (A7) 20715 | -6/Archives | Received a hacking code to weaken MAIN.C 20827 | -6/Archives | Discovered new exit (range 16) 20863 | -6/Archives | Build established: Scavenger-Mutant 21074 | -6/Archives | Identified exit to Hub_04(d) 21093 | -6/Archives | Entered Hub_04(d) 21093 | -6/Hub_04(d) | Accompanied by 2 allies 21373 | -6/Hub_04(d) | Found Prototype Device 21443 | -6/Hub_04(d) | First assault squad dispatched 21480 | -6/Hub_04(d) | Incoming assault squad redirected 21605 | -6/Hub_04(d) | Discovered new exit (range 5) 21749 | -6/Hub_04(d) | Network Hub disabled 21821 | -6/Hub_04(d) | Incoming assault squad redirected 22094 | -6/Hub_04(d) | Discovered new exit (range 16) 22201 | -6/Hub_04(d) | Spotted Lightning 22206 | -6/Hub_04(d) | Destroyed Lightning 22206 | -6/Hub_04(d) | Spotted Lightning 22209 | -6/Hub_04(d) | Destroyed Lightning 22209 | -6/Hub_04(d) | Spotted Lightning 22218 | -6/Hub_04(d) | Destroyed Lightning 22231 | -6/Hub_04(d) | Found Prototype Device 22231 | -6/Hub_04(d) | Identified Exp. Phase Shifter 22241 | -6/Hub_04(d) | Found Prototype Device 22242 | -6/Hub_04(d) | Identified Exp. EM Disruption Field 22260 | -6/Hub_04(d) | Found Prototype Energy Cannon 22262 | -6/Hub_04(d) | Found Exp. Targeting Computer 22275 | -6/Hub_04(d) | Found Exp. Targeting Computer 22280 | -6/Hub_04(d) | Found Prototype Energy Cannon 22290 | -6/Hub_04(d) | Found Exp. EM Disruption Field 22326 | -6/Hub_04(d) | Network Hub disabled 22354 | -6/Hub_04(d) | Allied Derelicts emerged from ambush trap array 22356 | -6/Hub_04(d) | Garrison activated, responded to threat 22375 | -6/Hub_04(d) | Identified exit to Garrison 22375 | -6/Hub_04(d) | Entered Garrison 22396 | -6/Garrison | Identified EMDS (x2) 22468 | -6/Garrison | Destroyed 10 combat bots 22492 | -6/Garrison | Triggered checkpoint 22505 | -6/Garrison | Garrison Relay disabled 22593 | -6/Garrison | Triggered checkpoint 22765 | -6/Garrison | Discovered new exit (range 10) 22951 | -6/Garrison | Discovered new exit (range 10) 23022 | -6/Garrison | Triggered checkpoint 23160 | -6/Garrison | Discovered new exit (range 10) 23184 | -6/Garrison | Expanded RIF knowledge: Signal Jamming 23238 | -6/Garrison | Triggered checkpoint 23322 | -6/Garrison | Garrison Relay disabled 23440 | -6/Garrison | Triggered checkpoint 23503 | -6/Garrison | Garrison Relay disabled 23578 | -6/Garrison | Triggered checkpoint 23680 | -6/Garrison | Triggered checkpoint 23773 | -6/Garrison | Garrison Relay disabled 24060 | -6/Garrison | Entered Factory 24060 | -5/Factory | Evolved 2 slots: Utility x2 24062 | -5/Factory | Identified Active Sensor Suite 24097 | -5/Factory | Identified exit to Upper Caves 24360 | -5/Factory | First assault squad dispatched 24378 | -5/Factory | Incoming assault squad redirected 24593 | -5/Factory | Build established: Bothacker-Skirmisher 24683 | -5/Factory | Incoming assault squad redirected 24736 | -5/Factory | Entered Upper Caves 24896 | -5/Upper Caves | Learned Factory terminal intel 24990 | -5/Upper Caves | Discovered new exit (range 11) 25004 | -5/Upper Caves | Identified exit to Upper Caves 25006 | -5/Upper Caves | Entered another Upper Caves area 25080 | -5/Upper Caves | Learned 4 Factory zone layouts 25279 | -5/Upper Caves | Discovered new exit (range 15) 25280 | -5/Upper Caves | Spotted AW-IS7(f) 25280 | -5/Upper Caves | Spotted GM-FDD(f) 25280 | -5/Upper Caves | Spotted A8-4EP(f) 25281 | -5/Upper Caves | Spotted 39-70W(f) 25282 | -5/Upper Caves | Encountered a Master Thief 25282 | -5/Upper Caves | Encountered a Master Thief 25282 | -5/Upper Caves | Encountered a Master Thief 25282 | -5/Upper Caves | Encountered a Master Thief 25284 | -5/Upper Caves | Quantum Reactor stolen by Master Thief 25285 | -5/Upper Caves | Exp. Phase Shifter stolen by Master Thief 25291 | -5/Upper Caves | Centrium Heavy Treads stolen by Master Thief 25293 | -5/Upper Caves | Centrium Heavy Treads stolen by Master Thief 25323 | -5/Upper Caves | Entered Zhirov 25323 | -5/Zhirov | Discovered new exit (range 4) 25352 | -5/Zhirov | Met Zhirov 25389 | -5/Zhirov | Learned location of Quarantine (-2) 25389 | -5/Zhirov | Learned location of Testing (-3) 25389 | -5/Zhirov | Learned location of Command (-1) 25399 | -5/Zhirov | Zhirov requested help retrieving the SGEMP Prototype 25431 | -5/Zhirov | Found Alien Artifact 25449 | -5/Zhirov | Found Alien Artifact 25594 | -5/Zhirov | Build established: Bothacker-Mutant 25611 | -5/Zhirov | Identified Integrated Dissipator 25611 | -5/Zhirov | Installed Integrated Dissipator, increased core heat dissipation (+20) 25664 | -5/Zhirov | Entered Proximity Caves 25796 | -4/Proximity Caves | Found Alien Artifact 26176 | -4/Proximity Caves | Discovered new exit (range 5) 26215 | -4/Proximity Caves | Entered Factory 26215 | -4/Factory | Evolved 2 slots: Propulsion x2 26217 | -4/Factory | Loaded intel: 25 terminal locations 26284 | -4/Factory | Discovered new exit (range 5) 26346 | -4/Factory | Garrison activated, responded to threat 26401 | -4/Factory | Destroyed 7 combat bots 26858 | -4/Factory | Build established: Scavenger-Mutant 27025 | -4/Factory | Lost 3 parts (1p1u1w) 27225 | -4/Factory | Identified exit to Upper Caves 27317 | -4/Factory | Sucked down chute 27317 | -4/Factory | Entered Waste 27318 | -4/Waste | Met a frightened Derelict 27418 | -4/Waste | Spotted C-40 Crusher 27428 | -4/Waste | Spotted C-40 Crusher 27431 | -4/Waste | Spotted C-40 Crusher 27456 | -4/Waste | Destroyed C-40 Crusher 27484 | -4/Waste | Spotted C-40 Crusher 27486 | -4/Waste | Spotted C-40 Crusher 27562 | -4/Waste | Spotted C-40 Crusher 27646 | -4/Waste | Destroyed C-40 Crusher 27664 | -4/Waste | Destroyed C-40 Crusher 27688 | -4/Waste | Destroyed C-40 Crusher 27705 | -4/Waste | Destroyed C-40 Crusher 27729 | -4/Waste | Found Damper Plating 27730 | -4/Waste | Destroyed C-40 Crusher 27745 | -4/Waste | Found Damper Plating 27833 | -4/Waste | Warlord forces began an assault 27906 | -4/Waste | Discovered new exit (range 15) 28360 | -4/Waste | Entered Factory 28360 | -4/Factory | Accompanied by 17 allies 28543 | -4/Factory | Identified exit to DSF 28579 | -4/Factory | Entered DSF 28579 | -4/DSF | Accompanied by 16 allies 28615 | -4/DSF | Additional patrols routed to DSF 28622 | -4/DSF | Found Active Sensor Suite 28651 | -4/DSF | Discovered new exit (range 14) 28673 | -4/DSF | Entered Research 28673 | -3/Research | Accompanied by 6 allies 28673 | -3/Research | Evolved 2 slots: Power x1, Utility x1 28685 | -3/Research | Identified exit to Armory 28685 | -3/Research | Identified exit to Testing 28927 | -3/Research | Incoming investigation squad redirected 28944 | -3/Research | Entered Testing 28944 | -3/Testing | Accompanied by 1 ally 29060 | -3/Testing | Scanned by Researcher 29127 | -3/Testing | Incoming investigation squad redirected 29149 | -3/Testing | Found Prototype Protection 29155 | -3/Testing | Found Prototype Protection 29155 | -3/Testing | Identified Hvy. Regenerative Plating 29158 | -3/Testing | Identified SHELL Armor 29184 | -3/Testing | Build established: Scavenger-Skirmisher 30092 | -3/Testing | Found Prototype Ballistic Cannon 30165 | -3/Testing | Found Prototype Energy Cannon 30165 | -3/Testing | Identified Disintegrator 30191 | -3/Testing | Discovered new exit (range 10) 30790 | -3/Testing | Build established: Scavenger-Mutant 30989 | -3/Testing | Entered Research 30989 | -2/Research | Evolved 2 slots: Utility x2 31080 | -2/Research | Spotted B-90 Cyclops 31104 | -2/Research | Identified exit to DSF 31234 | -2/Research | Identified exit to DSF 31322 | -2/Research | Build established: Generator-Mutant 31412 | -2/Research | Identified Omega Cannon 31658 | -2/Research | Destroyed 8 combat bots 31710 | -2/Research | Discovered new exit (range 4) 31734 | -2/Research | Identified exit to Quarantine 31764 | -2/Research | Entered Quarantine 31791 | -2/Quarantine | Cryocooling Duct disabled 31806 | -2/Quarantine | Ambient heat levels rising (+20) 31806 | -2/Quarantine | Non-combat units ordered to evacuate 31817 | -2/Quarantine | Found Alien Impact Weapon 31869 | -2/Quarantine | Found Alien Energy Cannon 32075 | -2/Quarantine | Garrison activated, responded to threat 32337 | -2/Quarantine | Discovered new exit (range 9) 32481 | -2/Quarantine | Found Prototype Processor 32481 | -2/Quarantine | Identified Exp. Armor Integrity Analyzer 32514 | -2/Quarantine | First assault squad dispatched 32689 | -2/Quarantine | Build established: Bothacker-Mutant 32792 | -2/Quarantine | Incoming assault squad redirected 33140 | -2/Quarantine | Found Alien Artifact 33176 | -2/Quarantine | Identified Core Stripper 33309 | -2/Quarantine | Incoming assault squad redirected 33358 | -2/Quarantine | Build established: Generator-Mutant 33634 | -2/Quarantine | Found Quantum Capacitor 33664 | -2/Quarantine | Found Alien Artifact 33926 | -2/Quarantine | Spotted Fortress 33947 | -2/Quarantine | Destroyed Fortress 33952 | -2/Quarantine | Found Exp. Force Field 33971 | -2/Quarantine | Found Prototype Reactor 33971 | -2/Quarantine | Identified Vortex Chain Reactor 33997 | -2/Quarantine | Found Prototype Device 33997 | -2/Quarantine | Identified Thermal Barrier 34119 | -2/Quarantine | Discovered new exit (range 5) 34127 | -2/Quarantine | Entered Section 7 34127 | -2/Section 7 | Identified Core Reset Matrix 34127 | -2/Section 7 | Identified Transdimensional Reconstructor 34127 | -2/Section 7 | Identified Subatomic Replicator 34127 | -2/Section 7 | Used Core Reset Matrix 34131 | -2/Section 7 | Sensed 22 artifacts in vicinity 34308 | -2/Section 7 | Found Integrated Reactor 34308 | -2/Section 7 | Installed Integrated Reactor, increased core energy generation (+10) 34492 | -2/Section 7 | Incoming assault squad redirected 34510 | -2/Section 7 | Spotted B-90 Cyclops 34533 | -2/Section 7 | Found Integrated Reactor 34533 | -2/Section 7 | Installed Integrated Reactor, increased core energy generation (+10) 34706 | -2/Section 7 | Spotted S7 Guard 34717 | -2/Section 7 | Destroyed S7 Guard 34750 | -2/Section 7 | Found Core Membrane 34750 | -2/Section 7 | Installed Core Membrane, gained immunity to corruption 34835 | -2/Section 7 | Spotted S7 Guard 34850 | -2/Section 7 | Destroyed S7 Guard 34872 | -2/Section 7 | Found Integrated Thermoelectric Network 34872 | -2/Section 7 | Installed Integrated Thermoelectric Network, gained heat-energy exchange potential 34882 | -2/Section 7 | Found Prototype Protection 34882 | -2/Section 7 | Identified Hvy. Regenerative Plating 34951 | -2/Section 7 | Spotted S7 Guard 35127 | -2/Section 7 | First assault squad dispatched 35146 | -2/Section 7 | Incoming assault squad redirected 35222 | -2/Section 7 | Incoming assault squad redirected 35318 | -2/Section 7 | Spotted Executioner 35320 | -2/Section 7 | Spotted Executioner 35381 | -2/Section 7 | Spotted B-99 Colossus 35449 | -2/Section 7 | Found Integrity Redistributor 35449 | -2/Section 7 | Used Integrity Redistributor, redistributed integrity from core (-303) 35457 | -2/Section 7 | Found Integrity Redistributor 35510 | -2/Section 7 | Found LRC Storage 35510 | -2/Section 7 | Installed LRC Storage, increased inventory capacity (+2) 35581 | -2/Section 7 | Found Integrated Reactor 35581 | -2/Section 7 | Installed Integrated Reactor, increased core energy generation (+10) 35731 | -2/Section 7 | Found Transdimensional Reconstructor 35734 | -2/Section 7 | Found Hpw. Transdimensional Reconstructor 35866 | -2/Section 7 | Destroyed Executioner 35871 | -2/Section 7 | Destroyed Executioner 36160 | -2/Section 7 | Found Prototype Launcher 36226 | -2/Section 7 | Discovered new exit (range 14) 36246 | -2/Section 7 | Entered Access 36246 | -1/Access | Evolved 2 slots: Utility x1, Weapon x1 36496 | -1/Access | First assault squad dispatched 36517 | -1/Access | Incoming assault squad redirected 36708 | -1/Access | Spotted B-99 Colossus 36755 | -1/Access | Identified Enh. Gamma Bomb Array 36771 | -1/Access | Incoming assault squad redirected 36790 | -1/Access | Garrison activated, responded to threat 37014 | -1/Access | Incoming assault squad redirected 37060 | -1/Access | Discovered new exit (range 7) 37070 | -1/Access | Entered Command 37444 | -1/Command | Spotted M Guard 37444 | -1/Command | Spotted M Guard 37444 | -1/Command | Spotted Combat Programmer 37462 | -1/Command | Spotted Combat Programmer 37479 | -1/Command | Destroyed Combat Programmer 37507 | -1/Command | Destroyed Combat Programmer 37521 | -1/Command | Destroyed M Guard 37525 | -1/Command | Destroyed M Guard 37525 | -1/Command | All MAIN.C guards destroyed 37547 | -1/Command | Found Corrupted Prototype Device 37547 | -1/Command | Identified AEGIS Remote Shield 37553 | -1/Command | Found Corrupted AEGIS Remote Shield 37557 | -1/Command | Found Corrupted Prototype Reactor 37557 | -1/Command | Identified Zero-point Reactor 37562 | -1/Command | Found Corrupted Zero-point Reactor 37568 | -1/Command | Found Corrupted Zero-point Reactor 37701 | -1/Command | Found Corrupted Zero-point Reactor 37873 | -1/Command | Met MAIN.C 37898 | -1/Command | 0b10 Conduit disabled 37915 | -1/Command | Destroyed MAIN.C Shell 37916 | -1/Command | MAIN.C activated Command garrisons 37953 | -1/Command | Destroyed MAIN.C 37958 | -1/Command | P-80 Master assimilated allied H-88 Terminator 37994 | -1/Command | Found Prototype Reactor 37994 | -1/Command | Identified Singularity Reactor 38013 | -1/Command | Destroyed 10 combat bots 38170 | -1/Command | Destroyed 24 combat bots 40016 | -1/Command | Discovered new exit (range 31) 40016 | -1/Command | Discovered new exit (range 117) 40016 | -1/Command | Extracted map data and part IDs from MAIN.C's data core 40057 | -1/Command | Used Integrity Redistributor, redistributed integrity from core (-346) 40241 | -1/Command | Found Exp. Targeting Computer 42745 | -1/Command | Found Exp. Core Analyzer 43166 | -1/Command | Found Imp. Potential Cannon 44889 | -1/Command | Found Exp. Core Analyzer 45192 | -1/Command | Found Exp. Armor Integrity Analyzer 45795 | -1/Command | Found Exp. System Purifier 45870 | -1/Command | Warped through subspace to slip node 45870 | -1/Command | Discovered new exit (range 5) 45873 | -1/Command | Used Subatomic Replicator to replicate Imp. Potential Cannon 45889 | -1/Command | Entered Access_0 45890 | -1/Access_0 | Sensed 3 artifacts in vicinity 45890 | -1/Access_0 | Met Architect 45893 | -1/Access_0 | Architect warped through subspace 45895 | -1/Access_0 | Destroyed A8 45932 | -1/Access_0 | Architect warped through subspace 45969 | -1/Access_0 | Architect warped through subspace 46003 | -1/Access_0 | Architect warped through subspace 46049 | -1/Access_0 | Architect warped through subspace 46073 | -1/Access_0 | Architect warped through subspace 46084 | -1/Access_0 | Subspace Access Node disabled 46088 | -1/Access_0 | Subspace Access Node disabled 46100 | -1/Access_0 | Architect warped through subspace 46119 | -1/Access_0 | Architect warped through subspace 46137 | -1/Access_0 | A6 warped into view 46144 | -1/Access_0 | Destroyed A6 46152 | -1/Access_0 | Architect warped through subspace 46195 | -1/Access_0 | Architect warped through subspace 46240 | -1/Access_0 | Architect warped through subspace 46284 | -1/Access_0 | Architect warped through subspace 46333 | -1/Access_0 | Architect warped through subspace 46377 | -1/Access_0 | Architect warped through subspace 46383 | -1/Access_0 | Subspace Access Node disabled 46413 | -1/Access_0 | A5 warped into view 46414 | -1/Access_0 | Core integrity fell below 50% 46433 | -1/Access_0 | Destroyed A5 46434 | -1/Access_0 | Architect warped through subspace 46477 | -1/Access_0 | Architect warped through subspace 46507 | -1/Access_0 | Architect warped through subspace 46534 | -1/Access_0 | Architect warped through subspace 46560 | -1/Access_0 | Architect warped through subspace 46581 | -1/Access_0 | Architect warped through subspace 46603 | -1/Access_0 | Architect warped through subspace 46623 | -1/Access_0 | Architect warped through subspace 46650 | -1/Access_0 | Architect warped through subspace 46660 | -1/Access_0 | Architect warped through subspace 46670 | -1/Access_0 | Architect warped through subspace 46680 | -1/Access_0 | Architect warped through subspace 46690 | -1/Access_0 | Architect warped through subspace 46699 | -1/Access_0 | Architect warped through subspace 46708 | -1/Access_0 | Architect warped through subspace 46716 | -1/Access_0 | Architect warped through subspace 46723 | -1/Access_0 | Architect warped through subspace 46742 | -1/Access_0 | Architect warped through subspace 46749 | -1/Access_0 | Architect warped through subspace 46765 | -1/Access_0 | Architect warped through subspace 46805 | -1/Access_0 | Subspace Access Node disabled 46814 | -1/Access_0 | Destroyed Architect 46815 | -1/Access_0 | Architect triggered a singularity event 46815 | -1/Access_0 | Warped through subspace to slip node 46815 | -1/Access_0 | Discovered new exit (range 8) 46817 | -1/Access_0 | Released all parts (15) 46820 | *** | Escaped singularity! Last Messages --------------- 46817_ Released Quantum Capacitor. 46817_ Released Exp. Armor Integrity Analyzer. 46817_ Released Huge Storage Unit. 46817_ Exp. Armor Integrity Analyzer crushed and broken. 46817_ Released Exp. Optical Array. 46817_ Released SHELL Armor. 46817_ Released Exp. Biometal Heavy Treads. 46817_ Released Exp. Targeting Computer. 46817_ Released Graviton Cannon. 46817_ Graviton Cannon crushed and broken. 46817_ Released Graphene Brace. 46817_ Graphene Brace crushed and broken. 46817_ Released Imp. Potential Cannon. 46817_ Imp. Potential Cannon crushed and broken. 46817_ Extracted 102 matter. 46818_ A0_COM: 8. 46818_ Extracted 1 energy. 46819_ A0_COM: 7. 46820_ A0_COM: 6. [Achievement: Planet Killer] Map ----- +----------------------------------------------------+ | | | | | | | | | | | | | | | | | | | | | | | | | | | | | | | | | ?????????????????????????????????????????????????? | | ?????????????????????????????????????????????????? | | ?????????????????????????????????????????????????? | | ?????????????????????????????????????????????????? | | ?????????????????????????????????????????????????? | | ?????????????????????????????????????????????????? | | ????????????????????????###??????????????????????? | | ???????????????????????## ##?????????????????????? | | ???????????????????????# #?????????????????????? | | ???????????????????????# @ #?????????????????????? | | ??????????????????????## #?????????????????????? | | ??????????????????????# = #?????????????????????? | | ??????????????????????#!!!##?????????????????????? | | ??????????????????????##!!!#?????????????????????? | | ??????????????????????#!!!!#?????????????????????? | | ??????????????????????#!=!##?????????????????????? | | ??????????????????????#!!*!#?????????????????????? | | ??????????????????????#!=!##?????????????????????? | | ??????????????????????##!*#??????????????????????? | | ???????????????????????####??????????????????????? | | ?????????????????????????????????????????????????? | | ?????????????????????????????????????????????????? | | ?????????????????????????????????????????????????? | | ?????????????????????????????????????????????????? | | ?????????????????????????????????????????????????? | | ?????????????????????????????????????????????????? | | ?????????????????????????????????????????????????? | | ?????????????????????????????????????????????????? | | ?????????????????????????????????????????????????? | | ?????????????????????????????????????????????????? | | ?????????????????????????????????????????????????? | | ?????????????????????????????????????????????????? | | ?????????????????????????????????????????????????? | | ?????????????????????????????????????????????????? | +----------------------------------------------------+ Best States ------------- Heat Dissipation 159 Energy Generation 119 Energy Capacity 1720 Matter Stores 740 Matter Capacity 800 Sight Range 23 Robot Scan Range 20 Terrain Scan Density 10 Jamming Range 14 Armor Coverage 3200 Resistance: TH 30 Resistance: EM 90 Core Shielding 20 Power Shielding 90 Propulsion Shielding 33 Utility Shielding 66 Weapon Shielding 90 Weapon Cycling 25 Phase Shifting 20 Evasion (%) 60 Targeting Accuracy 24 Target Analysis 8 Core Analysis 8 Armor Integrity Analysis 50 Recoil Reduction 6 Particle Charging 30 Kinecelleration 40 Offensive Hacking 20 Defensive Hacking 10 Relay Coupler Types 1 Relay Coupler Value 47 Item Schematics ----------------- None Robot Schematics ------------------ None Fabricated ------------ Nothing Alien Tech Used ----------------- Integrated Dissipator Core Stripper Core Reset Matrix Integrated Reactor Core Membrane Integrated Thermoelectric Network Integrity Redistributor LRC Storage Transdimensional Reconstructor Subatomic Replicator High-powered Transdimensional Reconstructor Achievements -------------- Planet Killer Challenges ------------ None Game ------ Seed ProtonSingularityInjector Manual? 0 Play Time 12:19:56 Cumulative 521.4 hours Start 2022.04.30 @ 05:50:24 End 2022.05.04 @ 22:21:58 Sessions 32 Manual Loads 0 Difficulty Rogue Special Mode None Game No. 495 Rogue 280 Adventurer 112 Explorer 103 Win Type 6 Total 33 Types 23/0/6/2/0/0/1/1/0 Lore% 87 Gallery% 91 Achievement% 80 Wizard Run 0 Options --------- ASCII 0 Keyboard 1 Movement Vi Keybinds 1 Fullscreen 2 Font 36/TerminusBold Map View 76x50 Tactical HUD 1 Map Filters NONE Filters NONE Steam 1 RUN: 8e15e25e-1caa-41a1-83db-2c72f712991f